Workbook

Sheet раскл3-7
A1: "Ознакомлена" Повар МБДОУ "Большековалинский детский сад "Чишмэкей" _________ Гиззатуллина Г.Р. | G1: "Утверждаю" Заведующий МБДОУ "Большековалинский детский сад "Чишмэкей" _____________ Г.Г.Гимадиева
C2: Меню-раскладка к примерному 10-дневному меню
C3: для организации питания детей в дошкольных образовательных учреждениях
C4: от 3-7 лет | E4: 7-10,5 часовое пребывание
A6: День 1 - ый
A7: Прием пищи | C7: Выход блюда | D7: Кол - во | E7: Кол - во | F7: Пищевые вещества (г) | I7: Энергетическая | J7: № рецептуры
A8: Наименование блюд | D8: (в гр ) | E8: (в гр ) | I8: ценность
D9: брутто | E9: нетто | F9: белки | G9: жиры | H9: угл-ды | I9: Ккал
B10: ЗАВТРАК
A11: Каша манная молочная с маслом | C11: 200/5 | F11: 10.00 | G11: 10.00 | H11: 24.50 | I11: 228.00 | J11: ТТК №4
B12: Крупа манная | D12: 20.00 | E12: 20.00
B13: Молоко | D13: 100.00 | E13: 100.00
B14: вода | D14: 76.00 | E14: 76.00
B15: сахар | D15: 3.00 | E15: 3.00
B16: Соль | D16: 1.50 | E16: 1.50
B17: Масло сливочное | D17: 5.00 | E17: 5.00
A18: Чай с сахаром | C18: 180/5 | F18: 0.06 | G18: 0.02 | H18: 4.99 | I18: 20.38 | J18: № 411 Дели2016
B19: Заварка | D19: 0.3 | E19: 0.3
B20: сахар | D20: 5 | E20: 5
B21: Вода | D21: 180 | E21: 180
A22: Бутерброд с маслом сливочным | C22: 30/5 | F22: 2.30 | G22: 4.50 | H22: 15.40 | I22: 111.00 | J22: №1 Дели2010
B23: Батон нарезной | D23: 30.00 | E23: 30.00
B24: Масло сливочное | D24: 5.00 | E24: 5.00
A25: Итого: | C25: 425 | F25: =SUM(F10:F24) -> 12.36 | G25: =SUM(G10:G24) -> 14.52 | H25: =SUM(H10:H24) -> 44.89 | I25: =SUM(I10:I24) -> 359.38
A26: Сок | C26: 125 | D26: 125 | E26: 125 | F26: 0.60 | G26: 0.06 | H26: 22.00 | I26: 90.90 | J26: №418Дели2016
A27: абрикосовый
A28: Итого: | C28: =SUM(C26:C26) -> 125 | F28: =SUM(F26) -> 0.60 | G28: =SUM(G26) -> 0.06 | H28: =SUM(H26) -> 22.00 | I28: =SUM(I26) -> 90.90
C29: 550 | F29: =F25+F28 -> 12.96 | G29: =G25+G28 -> 14.58 | H29: =H25+H28 -> 66.89 | I29: =I25+I28 -> 450.28
B30: ОБЕД
A31: Салат из свежей капусты | C31: 50 | F31: 0.70 | G31: 2.50 | H31: 4.50 | I31: 43.50 | J31: №21 Дели2016
B32: капуста свежая | D32: 50.60 | E32: 40.50
B33: морковь | D33: 6.25 | E33: 5.00
B34: сахар | D34: 0.80 | E34: 0.80
B35: Масло растительное | D35: 2.50 | E35: 2.50
B36: соль | D36: 0.20 | E36: 0.20
A37: Суп вермишелевый с картофелем и курицей | C37: 200/15 | F37: 3.86 | G37: 5.80 | H37: 15.24 | I37: 132.60 | J37: №88 Дели 2016
B38: цыплята | D38: 33.85 | E38: 22
B39: Картофель | D39: 79.80 | E39: 60.00
B40: Морковь | D40: 10.00 | E40: 8.00
B41: Лук репчатый | D41: 9.52 | E41: 8.00
B42: Вермишель | D42: 8.00 | E42: 8.00
B43: Масло растительное | D43: 2.40 | E43: 2.40
B44: Соль | D44: 1.00 | E44: 1.00
B45: Вода | D45: 152.00 | E45: 152.00
A46: Тефтели из говядины с соусом томатным | C46: 70/10 | F46: 6.2 | G46: 6.5 | H46: 5 | I46: 103 | J46: ТТК № 1152 от 09.10.2020 и №364 С-Петербург 2008 | K46: 121
B47: фарш из говядины | D47: 48 | E47: 48
B48: Хлеб пшеничный 1с | D48: 6 | E48: 6
B49: Вода | D49: 6 | E49: 6
B50: Лук репчатый | D50: 14.28 | E50: 12
B51: Крупа манная | D51: 3 | E51: 3
B52: Соль | D52: 0.5 | E52: 0.5
B53: масса полуфабриката | E53: 74
B54: Масло растительное | D54: 2 | E54: 2
B55: соус томатный | E55: 10.0
B56: вода | D56: 9.0 | E56: 9.0
B57: Масло растительное | D57: 0.4 | E57: 0.4
B58: Мука пшеничная | D58: 0.4 | E58: 0.4
B59: морковь | D59: 0.8 | E59: 0.6
B60: Лук репчатый | D60: 0.3 | E60: 0.2
B61: Томат-паста | D61: 1.0 | E61: 1.0
B62: Масло растительное | D62: 0.2 | E62: 0.2
B63: соль | D63: 0.1 | E63: 0.1
B64: сахар | D64: 0.2 | E64: 0.2
A65: Рис отварной с овощами | C65: 130 | F65: 6.5 | G65: 5 | H65: 38.6 | I65: 225 | J65: №334 Дели2016
B66: Крупа рисовая | D66: 37.7 | E66: 37.7
B67: Вода | D67: 80.6 | E67: 80.6
B68: Масса каши | E68: 107
B69: Масло сливочное | D69: 5 | E69: 5
B70: Морковь | D70: 16.25 | E70: 13
B71: Масса припущенной моркови | E71: 11.9
B72: Лук репчатый | D72: 15.47 | E72: 13
B73: Масса припущенного лука | E73: 6.5
B74: Соль | D74: 0.3 | E74: 0.3
A75: Кисель | C75: 180 | H75: 10.00 | I75: 40.00 | J75: №284Партнер2014
B76: Кисель-концентрат | D76: 21.60 | E76: 21.60
B77: вода | D77: 172.00 | E77: 172.00
B78: Сахар | D78: 5.00 | E78: 5.00
A79: Хлеб пшеничный 1с | C79: 23 | D79: 23.00 | E79: 23.00 | F79: 1.80 | G79: 0.23 | H79: 11.30 | I79: 54.50
A80: Хлеб сельский | C80: 37.5 | D80: 37.50 | E80: 37.50 | F80: 1.8 | G80: 0.4 | H80: 18 | I80: 82.5
A81: Итого: | C81: 721.5 | F81: =SUM(F31:F80) -> 20.86 | G81: =SUM(G31:G80) -> 20.43 | H81: 102.64 | I81: 681.10
B82: ПОЛДНИК
A83: Фрукты свежие | C83: 100 | D83: 114 | E83: 100 | F83: 0.40 | G83: 0.40 | H83: 10.00 | I83: 45.20 | J83: №386Дели2016
A84: яблоко
A85: Катык | C85: 120 | F85: 3.77 | G85: 3 | H85: 5 | I85: 62.1 | J85: №401Дели2010
B86: катык | D86: 123.60 | E86: 120.00
A87: Булочка Домашняя | C87: 50 | F87: 4.90 | G87: 5.00 | H87: 28.00 | I87: 177.00 | J87: №258 Партнер г. Уфа 2014
B88: Мука пшеничная | D88: 34.00 | E88: 34.00
B89: Сахар | D89: 7.00 | E89: 7.00
B90: вода | D90: 14.00 | E90: 14.00
B91: Масло растительное | D91: 7.00 | E91: 7.00
B92: Дрожжи сухие | D92: 0.20 | E92: 0.20
B93: Соль | D93: 0.30 | E93: 0.30
B94: Яйцо | D94: 1.00 | E94: 1.00
B95: Масса полуфабриката | E95: 60.50
B96: Масло растительное | D96: 0.20 | E96: 0.20
A97: Напиток шиповника | C97: 180/5 | F97: 0.6 | G97: 0.3 | H97: 6.5 | I97: 31.1 | J97: ТТК № 59
B98: шиповник порошок | D98: 3 | E98: 3
B99: Сахар | D99: 5 | E99: 5
B100: Вода | D100: 180 | E100: 180
A101: Итого: | C101: 457 | F101: =SUM(F82:F100) -> 9.67 | G101: =SUM(G82:G100) -> 8.70 | H101: =SUM(H82:H100) -> 49.50 | I101: =SUM(I82:I100) -> 315.40
A102: ВСЕГО: | C102: =C25+C28+C81+C101 -> 1728.5 | F102: =F25+F28+F81+F101 -> 43.49 | G102: =G25+G28+G81+G101 -> 43.71 | H102: =H25+H28+H81+H101 -> 219.03 | I102: =I25+I28+I81+I101 -> 1446.78
A104: День 2- ой
A105: Прием пищи | C105: Выход блюда | D105: Кол - во | E105: Кол - во | F105: Пищевые вещества (г) | I105: Энергетическая | J105: № рецептуры
A106: Наименование блюд | D106: (в гр ) | E106: (в гр ) | I106: ценность
D107: брутто | E107: нетто | F107: белки | G107: жиры | H107: угл-ды | I107: Ккал
B108: ЗАВТРАК
A109: Каша "Дружба" молочная с маслом | C109: 200/5 | F109: 5.20 | G109: 5.80 | H109: 25.20 | I109: 173.80 | J109: ТТК №7
B110: Крупа рисовая | D110: 15.00 | E110: 15.00
B111: Крупа пшенная | D111: 11.00 | E111: 11.00
B112: Молоко | D112: 86.00 | E112: 86.00
B113: Вода | D113: 86.00 | E113: 86.00
B114: Сахар | D114: 1.00 | E114: 1.00
B115: Соль | D115: 1.00 | E115: 1.00
B116: Масло сливочное | D116: 5.00 | E116: 5.00
A117: Какао с молоком | C117: 180 | F117: 2.42 | G117: 2.58 | H117: 13.61 | I117: 87.30 | J117: №272 Парнер г. Уфа 2014
B118: Какао-порошок | D118: 1.50 | E118: 1.50
B119: Сахар | D119: 8.00 | E119: 8.00
B120: Молоко | D120: 90.00 | E120: 90.00
B121: Вода | D121: 100.00 | E121: 100.00
A122: Бутерброд с сыром, маслом | C122: 30/7/3 | F122: 4.80 | G122: 7.20 | H122: 15.40 | I122: 146.00 | J122: №3 Дели2010
B123: Батон нарезной | D123: 30.00 | E123: 30.00
B124: Сыр | D124: 7.14 | E124: 7.00
B125: Масло сливочное | D125: 3.00 | E125: 3.00
A126: Итого: | C126: 425 | F126: =SUM(F108:F124) -> 12.42 | G126: =SUM(G108:G124) -> 15.58 | H126: 54.21 | I126: 407.10
A127: Фрукты свежие | C127: 100 | D127: 114 | E127: 100 | F127: 1.00 | G127: 0.00 | H127: 8.10 | I127: 36.40 | J127: № 368 Дели 2010
A128: апельсин
A129: Итого: | C129: =SUM(C127) -> 100 | F129: =SUM(F127) -> 1.00 | G129: =SUM(G127) -> 0.00 | H129: =SUM(H127) -> 8.10 | I129: =SUM(I127) -> 36.40
C130: 525 | F130: =F126+F129 -> 13.42 | G130: =G126+G129 -> 15.58 | H130: =H126+H129 -> 62.31 | I130: =I126+I129 -> 443.50
B131: ОБЕД
A132: Помидоры свежие порционно | C132: 50 | F132: 0.55 | G132: 0.10 | H132: 1.90 | I132: 12.00 | J132: стр563,сб1996
B133: Помидоры свежие | D133: 52.00 | E133: 50.00
A134: Суп из овощей с курицей, со сметаной | C134: 200/15/6 | F134: 3.00 | G134: 8.50 | H134: 8.50 | I134: 126.00 | J134: №64 "Партнер"2014
B135: цыплята | D135: 33.85 | E135: 22
B136: Капуста свежая | D136: 20.00 | E136: 16.00
B137: Картофель | D137: 53.20 | E137: 40.00
B138: Морковь | D138: 10.00 | E138: 8.00
B139: Лук репчатый | D139: 9.52 | E139: 8.00
B140: Масло растительное | D140: 4.00 | E140: 4.00
B141: Соль | D141: 1.00 | E141: 1.00
B142: Бульон или вода | D142: 152.00 | E142: 152.00
B143: Сметана | D143: 6.00 | E143: 6.00
A144: Биточки рубленые из рыбы | C144: 70 | F144: 8.75 | G144: 6.80 | H144: 8.15 | I144: 129.00 | J144: ТТК №3Д
B145: рыба | D145: 69.08 | E145: 52.50
B146: Яйцо | D146: 10.50 | E146: 10.50
B147: крупа манная | D147: 1.75 | E147: 1.75
B148: Лук репчатый | D148: 15.50 | E148: 13.00
B149: вода | D149: 5.30 | E149: 5.30
B150: Соль | D150: 0.50 | E150: 0.50
B151: сухари панировочные | D151: 5.00 | E151: 5.00
B152: Масло растительное | D152: 1.50 | E152: 1.50
B153: Сахар | D153: 0.20 | E153: 0.20
B154: Масса полуфабриката | E154: 83.00
A155: Пюре Картофельное | C155: 130 | F155: 3.70 | G155: 4.44 | H155: 25.00 | I155: 155.00 | J155: №137 Партнер 2014
B156: Картофель | D156: 148.43 | E156: 111.60
B157: Молоко | D157: 20.50 | E157: 19.50
B158: Масло сливочное | D158: 3.00 | E158: 3.00
B159: Соль | D159: 1.00 | E159: 1.00
A160: Компот из свежих яблок | C160: 180 | F160: 0.10 | G160: 0.10 | H160: 11.80 | I160: 48.50 | J160: № 390 Дели 2016
B161: яблоки | D161: 40.8 | E161: 36.0
B162: вода | D162: 155.0 | E162: 155.0
B163: сахар | D163: 5.0 | E163: 5.0
A164: Хлеб пшеничный 1с | C164: 23 | D164: 23.00 | E164: 23.00 | F164: 1.80 | G164: 0.23 | H164: 11.30 | I164: 54.50
A165: Хлеб сельский | C165: 37.5 | D165: 37.50 | E165: 37.50 | F165: 1.8 | G165: 0.4 | H165: 18 | I165: 82.5
A166: Итого: | C166: 705.5 | F166: =SUM(F132:F165) -> 19.70 | G166: =SUM(G132:G165) -> 20.57 | H166: 84.65 | I166: 607.50
B167: ПОЛДНИК
A168: Кондитерские изделия | C168: 15 | F168: 1.50 | G168: 4.00 | H168: 27.10 | I168: 150.00
A169: печенье КП | D169: 15.00 | E169: 15.00
A170: Молоко кипяченое | C170: 120 | F170: 3.40 | G170: 3.00 | H170: 5.70 | I170: 63.40 | J170: №419 Дели2016
B171: молоко | D171: 126.46 | E171: 120.00
A172: Запеканка творожная с молоком сгущенным | C172: 150/20 | F172: 9.80 | G172: 10.00 | H172: 28.30 | I172: 241.00 | J172: №237 Дели2010
B173: Творог | D173: 140.00 | E173: 138.00
B174: Крупа манная | D174: 9.00 | E174: 9.00
B175: Яйцо | D175: 6.00 | E175: 6.00
B176: Сахар | D176: 12.00 | E176: 12.00
B177: Сметана | D177: 6.00 | E177: 6.00
B178: Масло сливочное | D178: 6.00 | E178: 6.00
B179: Сухари панировочные | D179: 6.00 | E179: 6.00
B180: Соль | D180: 0.50 | E180: 0.50
B181: молоко сгущенное | D181: 20.00 | E181: 20.00
A182: Чай с сахаром и лимоном | C182: 180/5/5 | F182: 0.12 | G182: 0.01 | H182: 10.20 | I182: 41.40 | J182: №393Дели2010
B183: Заварка | D183: 0.35 | E183: 0.35
B184: Сахар | D184: 5 | E184: 5
B185: лимон | D185: 5.1 | E185: 5
B186: Вода | D186: 180.0 | E186: 180.0
A187: Итого: | C187: 495 | F187: =SUM(F167:F186) -> 14.82 | G187: =SUM(G167:G186) -> 17.01 | H187: =SUM(H167:H186) -> 71.30 | I187: =SUM(I167:I186) -> 495.80
A188: ВСЕГО: | C188: =C126+C129+C166+C187 -> 1725.50 | F188: =F126+F129+F166+F187 -> 47.94 | G188: =G126+G129+G166+G187 -> 53.16 | H188: =H126+H129+H166+H187 -> 218.26 | I188: =I126+I129+I166+I187 -> 1546.80
A190: День 3 - ий
A191: Прием пищи | C191: Выход блюда | D191: Кол - во | E191: Кол - во | F191: Пищевые вещества (г) | I191: Энергетическая | J191: № рецептуры
A192: Наименование блюд | D192: (в гр ) | E192: (в гр ) | I192: ценность
D193: брутто | E193: нетто | F193: белки | G193: жиры | H193: угл-ды | I193: Ккал
B194: ЗАВТРАК
A195: Каша Геркулесовая молочная с маслом | C195: 200/5 | F195: 6.70 | G195: 7.50 | H195: 22.00 | I195: 182.30 | J195: ТТК №5
B196: Крупа Геркулесовая | D196: 25.00 | E196: 25.00
B197: Молоко | D197: 100.00 | E197: 100.00
B198: вода | D198: 76.00 | E198: 76.00
B199: Сахар | D199: 1.00 | E199: 1.00
B200: Соль | D200: 1.00 | E200: 1.00
B201: Масло сливочное | D201: 5.00 | E201: 5.00
A202: Чай с молоком,сахаром | C202: 180/5 | F202: 2.60 | G202: 2.30 | H202: 14.30 | I202: 89.00 | J202: № 394 Дели2010
B203: Заварка | D203: 0.3 | E203: 0.3
... 690 more rows

Sheet меню 3-7 ПОСЛЕД
A1: "Согласовано" | E1: "Утверждаю"
A2: ________________________ | E2: Заместитель генерального директора по организации питания АО "Департамент продовольствия и социального питания г. Казани"
A3: __________________________ | E3: __________________А.К. Агапова
E4: Сентябрь 2024г
C5: Примерное 10-дневное меню
C6: для организации питания детей в дошкольных образовательных учреждениях
C7: от 3-7 лет с 7-10,5 часовым пребыванием
C9: Меню-раскладка к примерному 10-дневному меню
C10: для организации питания детей в дошкольных образовательных учреждениях
C11: от 3-7 лет
A13: День 1 - ый
A14: Прием пищи | C14: Выход блюда | D14: Пищевые вещества (г) | G14: Энергетическая | H14: № рецептуры
A15: Наименование блюд | G15: ценность
D16: белки | E16: жиры | F16: угл-ды | G16: Ккал
B17: ЗАВТРАК
A18: Каша манная молочная с маслом | C18: 200/5 | D18: 10.00 | E18: 10.00 | F18: 24.50 | G18: 228.00 | H18: ТТК №4
A19: Чай с сахаром | C19: 180/5 | D19: 0.06 | E19: 0.02 | F19: 4.99 | G19: 20.38 | H19: № 411 Дели2016
A20: Бутерброд с маслом сливочным | C20: 30/5 | D20: 2.30 | E20: 4.50 | F20: 15.40 | G20: 111.00 | H20: №1 Дели2010
A21: Итого: | C21: 425 | D21: =SUM(D17:D20) -> 12.36 | E21: =SUM(E17:E20) -> 14.52 | F21: =SUM(F17:F20) -> 44.89 | G21: =SUM(G17:G20) -> 359.38
A22: Сок | C22: 125 | D22: 0.60 | E22: 0.06 | F22: 22.00 | G22: 90.90 | H22: №418Дели2016
A23: абрикосовый
A24: Итого: | C24: =SUM(C22:C22) -> 125 | D24: =SUM(D22) -> 0.60 | E24: =SUM(E22) -> 0.06 | F24: =SUM(F22) -> 22.00 | G24: =SUM(G22) -> 90.90
C25: 550 | D25: =D21+D24 -> 12.96 | E25: =E21+E24 -> 14.58 | F25: =F21+F24 -> 66.89 | G25: =G21+G24 -> 450.28
B26: ОБЕД
A27: Салат из свежей капусты | C27: 50 | D27: 0.70 | E27: 2.50 | F27: 4.50 | G27: 43.50 | H27: №21 Дели2016
A28: Суп вермишелевый с картофелем и курицей | C28: 200/15 | D28: 3.86 | E28: 5.80 | F28: 15.24 | G28: 132.60 | H28: №88 Дели 2016
A29: Тефтели из говядины с соусом томатным | C29: 70/10 | D29: 6.2 | E29: 6.5 | F29: 5 | G29: 103 | H29: ТТК № 1152 от 09.10.2020 и №364 С-Петербург 2008
A30: Рис отварной с овощами | C30: 130 | D30: 6.5 | E30: 5 | F30: 38.6 | G30: 225 | H30: №334 Дели2016
A31: Кисель | C31: 180 | F31: 10.00 | G31: 40.00 | H31: №284Партнер2014
A32: Хлеб пшеничный 1с | C32: 23 | D32: 1.80 | E32: 0.23 | F32: 11.30 | G32: 54.50
A33: Хлеб сельский | C33: 37.5 | D33: 1.8 | E33: 0.4 | F33: 18 | G33: 82.5
A34: Итого: | C34: 721.5 | D34: =SUM(D27:D33) -> 20.86 | E34: =SUM(E27:E33) -> 20.43 | F34: 102.64 | G34: 681.10
B35: ПОЛДНИК
A36: Фрукты свежие | C36: 100 | D36: 0.40 | E36: 0.40 | F36: 10.00 | G36: 45.20 | H36: №386Дели2016
A37: яблоко
A38: Катык | C38: 120 | D38: 3.77 | E38: 3 | F38: 5 | G38: 62.1 | H38: №401Дели2010
A39: Булочка Домашняя | C39: 50 | D39: 4.90 | E39: 5.00 | F39: 28.00 | G39: 177.00 | H39: №258 Партнер г. Уфа 2014
A40: Напиток шиповника | C40: 180/5 | D40: 0.6 | E40: 0.3 | F40: 6.5 | G40: 31.1 | H40: ТТК № 59
A41: Итого: | C41: 457 | D41: =SUM(D35:D40) -> 9.67 | E41: =SUM(E35:E40) -> 8.70 | F41: =SUM(F35:F40) -> 49.50 | G41: =SUM(G35:G40) -> 315.40
A42: ВСЕГО: | C42: =C21+C24+C34+C41 -> 1728.5 | D42: =D21+D24+D34+D41 -> 43.49 | E42: =E21+E24+E34+E41 -> 43.71 | F42: =F21+F24+F34+F41 -> 219.03 | G42: =G21+G24+G34+G41 -> 1446.78
A44: День 2- ой
A45: Прием пищи | C45: Выход блюда | D45: Пищевые вещества (г) | G45: Энергетическая | H45: № рецептуры
A46: Наименование блюд | G46: ценность
D47: белки | E47: жиры | F47: угл-ды | G47: Ккал
B48: ЗАВТРАК
A49: Каша "Дружба" молочная с маслом | C49: 200/5 | D49: 5.20 | E49: 5.80 | F49: 25.20 | G49: 173.80 | H49: ТТК №7
A50: Какао с молоком | C50: 180 | D50: 2.42 | E50: 2.58 | F50: 13.61 | G50: 87.30 | H50: №272 Парнер г. Уфа 2014
A51: Бутерброд с сыром, маслом | C51: 30/7/3 | D51: 4.80 | E51: 7.20 | F51: 15.40 | G51: 146.00 | H51: №3 Дели2010
A52: Итого: | C52: 425 | D52: =SUM(D48:D51) -> 12.42 | E52: =SUM(E48:E51) -> 15.58 | F52: =SUM(F48:F51) -> 54.21 | G52: =SUM(G48:G51) -> 407.10
A53: Фрукты свежие | C53: 100 | D53: 1.00 | E53: 0.00 | F53: 8.10 | G53: 36.40 | H53: № 368 Дели 2010
A54: апельсин
A55: Итого: | C55: =SUM(C53) -> 100 | D55: =SUM(D53) -> 1.00 | E55: =SUM(E53) -> 0.00 | F55: =SUM(F53) -> 8.10 | G55: =SUM(G53) -> 36.40
C56: 525 | D56: =D52+D55 -> 13.42 | E56: =E52+E55 -> 15.58 | F56: =F52+F55 -> 62.31 | G56: =G52+G55 -> 443.50
B57: ОБЕД
A58: Помидоры свежие порционно | C58: 50 | D58: 0.55 | E58: 0.10 | F58: 1.90 | G58: 12.00 | H58: стр563,сб1996
A59: Суп из овощей с курицей, со сметаной | C59: 200/15/6 | D59: 3.00 | E59: 8.50 | F59: 8.50 | G59: 126.00 | H59: №64 "Партнер"2014
A60: Биточки рубленые из рыбы | C60: 70 | D60: 8.75 | E60: 6.80 | F60: 8.15 | G60: 129.00 | H60: ТТК №3Д
A61: Пюре Картофельное | C61: 130 | D61: 3.70 | E61: 4.44 | F61: 25.00 | G61: 155.00 | H61: №137 Партнер 2014
A62: Компот из свежих яблок | C62: 180 | D62: 0.10 | E62: 0.10 | F62: 11.80 | G62: 48.50 | H62: № 390 Дели 2016
A63: Хлеб пшеничный 1с | C63: 23 | D63: 1.80 | E63: 0.23 | F63: 11.30 | G63: 54.50
A64: Хлеб сельский | C64: 37.5 | D64: 1.8 | E64: 0.4 | F64: 18 | G64: 82.5
A65: Итого: | C65: 705.5 | D65: =SUM(D58:D64) -> 19.70 | E65: =SUM(E58:E64) -> 20.57 | F65: 84.65 | G65: 607.50
B66: ПОЛДНИК
A67: Кондитерские изделия | C67: 15 | D67: 1.50 | E67: 4.00 | F67: 27.10 | G67: 150.00
A68: печенье КП
A69: Молоко кипяченое | C69: 120 | D69: 3.40 | E69: 3.00 | F69: 5.70 | G69: 63.40 | H69: №419 Дели2016
A70: Запеканка творожная с молоком сгущенным | C70: 150/20 | D70: 9.80 | E70: 10.00 | F70: 28.30 | G70: 241.00 | H70: №237 Дели2010
A71: Чай с сахаром и лимоном | C71: 180/5/5 | D71: 0.12 | E71: 0.01 | F71: 10.20 | G71: 41.40 | H71: №393Дели2010
A72: Итого: | C72: 495 | D72: =SUM(D66:D71) -> 14.82 | E72: =SUM(E66:E71) -> 17.01 | F72: =SUM(F66:F71) -> 71.30 | G72: =SUM(G66:G71) -> 495.80
A73: ВСЕГО: | C73: =C52+C55+C65+C72 -> 1725.50 | D73: =D52+D55+D65+D72 -> 47.94 | E73: =E52+E55+E65+E72 -> 53.16 | F73: =F52+F55+F65+F72 -> 218.26 | G73: =G52+G55+G65+G72 -> 1546.80
A75: День 3 - ий
A76: Прием пищи | C76: Выход блюда | D76: Пищевые вещества (г) | G76: Энергетическая | H76: № рецептуры
A77: Наименование блюд | G77: ценность
D78: белки | E78: жиры | F78: угл-ды | G78: Ккал
B79: ЗАВТРАК
A80: Каша Геркулесовая молочная с маслом | C80: 200/5 | D80: 6.70 | E80: 7.50 | F80: 22.00 | G80: 182.30 | H80: ТТК №5
A81: Чай с молоком,сахаром | C81: 180/5 | D81: 2.60 | E81: 2.30 | F81: 14.30 | G81: 89.00 | H81: № 394 Дели2010
A82: Бутерброд с маслом сливочным | C82: 30/5 | D82: 2.30 | E82: 4.50 | F82: 15.40 | G82: 111.00 | H82: №1 Дели2010
A83: Итого: | C83: 425 | D83: =SUM(D80:D82) -> 11.60 | E83: =SUM(E80:E82) -> 14.30 | F83: =SUM(F80:F82) -> 51.70 | G83: =SUM(G80:G82) -> 382.30
A84: Сок | C84: 125 | D84: 1.20 | E84: 0.00 | F84: 12.00 | G84: 49.60 | H84: №418Дели2016
A85: яблочно-абрикосовый
A86: Итого: | C86: =SUM(C84) -> 125 | D86: =SUM(D84) -> 1.20 | E86: =SUM(E84) -> 0.00 | F86: =SUM(F84) -> 12.00 | G86: =SUM(G84) -> 49.60
C87: 550 | D87: =D83+D86 -> 12.80 | E87: =E83+E86 -> 14.30 | F87: =F83+F86 -> 63.70 | G87: =G83+G86 -> 431.90
B88: ОБЕД
A89: Огурцы свежие порционно | C89: 50 | D89: 0.35 | E89: 0.05 | F89: 0.95 | G89: 6.00 | H89: стр563,сб1996
A90: Суп с гречневой крупой и картофелем с мясными фрикадельками | C90: 200/15 | D90: 3.35 | E90: 7.20 | F90: 13.80 | G90: 133.50 | H90: №86 Дели 2016
A91: Голубцы ленивые в соусе сметанно-томатн. | C91: 150/20 | D91: 12.30 | E91: 14.60 | F91: 38.20 | G91: 333.40 | H91: 0.80
A92: Напиток из урюка | C92: 180 | D92: 0.6 | E92: 0.0 | F92: 15.0 | G92: 63 | H92: ТТК №68
A93: Хлеб пшеничный 1с | C93: 23 | D93: 1.80 | E93: 0.23 | F93: 11.30 | G93: 54.50
A94: Хлеб сельский | C94: 37.5 | D94: 1.8 | E94: 0.4 | F94: 18 | G94: 82.5
A95: Итого: | C95: 675.5 | D95: =SUM(D88:D94) -> 20.20 | E95: =SUM(E88:E94) -> 22.51 | F95: =SUM(F88:F94) -> 97.25 | G95: =SUM(G88:G94) -> 672.40
B96: ПОЛДНИК
A97: Фрукты свежие | C97: 100 | D97: 0.36 | E97: 0.36 | F97: 22.00 | G97: 92.68 | H97: №386Дели2016
A98: яблоко
A99: Ватрушка с повидлом | C99: 50 | D99: 0.8 | E99: 3.10 | F99: 35.00 | G99: 170 | H99: №441 Дели 2016
A100: Ряженка | C100: 120 | D100: 4.30 | E100: 3.00 | F100: 5.00 | G100: 64.00 | H100: №401 Дели2010
A101: Яйцо вареное | C101: 48 | D101: 5.10 | E101: 4.60 | F101: 0.30 | G101: 63.00 | H101: №227 Дели 2016
A102: Чай с сахаром | C102: 180/5 | D102: 0.06 | E102: 0.02 | F102: 4.99 | G102: 20.38 | H102: № 411 Дели2016
A103: Итого: | C103: 503 | D103: =SUM(D97:D102) -> 10.62 | E103: =SUM(E97:E102) -> 11.08 | F103: =SUM(F97:F102) -> 67.29 | G103: =SUM(G97:G102) -> 410.06
A104: ВСЕГО: | C104: =C83+C86+C95+C103 -> 1728.5 | D104: =D83+D86+D95+D103 -> 43.62 | E104: =E83+E86+E95+E103 -> 47.89 | F104: =F83+F86+F95+F103 -> 228.24 | G104: =G83+G86+G95+G103 -> 1514.36
A106: День 4 - ый
A107: Прием пищи | C107: Выход блюда | D107: Пищевые вещества (г) | G107: Энергетическая | H107: № рецептуры
A108: Наименование блюд | G108: ценность
D109: белки | E109: жиры | F109: угл-ды | G109: Ккал
B110: ЗАВТРАК
A111: Каша пшенная молочная с маслом | C111: 200/5 | D111: 8.00 | E111: 6.60 | F111: 26.00 | G111: 195.40 | H111: ТТК №6
A112: Кофейный напиток с молоком | C112: 180 | D112: 1.22 | E112: 1.34 | F112: 11.94 | G112: 65.00 | H112: №270 Партнер г. Уфа 2014
A113: Бутерброд с сыром, маслом | C113: 30/7/3 | D113: 4.80 | E113: 7.20 | F113: 15.40 | G113: 146.00 | H113: №3 Дели2010
A114: Итого: | C114: 425 | D114: =SUM(D110:D113) -> 14.02 | E114: =SUM(E110:E113) -> 15.14 | F114: =SUM(F110:F113) -> 53.34 | G114: =SUM(G110:G113) -> 406.40
A115: Фруктовое пюре | C115: 125 | D115: 13.00 | E115: 0.00 | F115: 0.00 | G115: 55.00
A116: яблоко
A117: Итого: | C117: =SUM(C115) -> 125 | D117: =SUM(D115) -> 13.00 | E117: =SUM(E115) -> 0.00 | F117: =SUM(F115) -> 0.00 | G117: =SUM(G115) -> 55.00
C118: 525 | D118: =D114+D117 -> 27.02 | E118: =E114+E117 -> 15.14 | F118: =F114+F117 -> 53.34 | G118: =G114+G117 -> 461.40
B119: ОБЕД
A120: Помидоры свежие порционно | C120: 50 | D120: 0.55 | E120: 0.10 | F120: 1.90 | G120: 12.00 | H120: стр563,сб1996
A121: Щи со свежей капустой, картофелем, на м/б и сметаной | C121: 200/5 | D121: 4.60 | E121: 8.00 | F121: 17.00 | G121: 158.50 | H121: №73 Дели 2016
A122: Жаркое по-домашнему из отварной говядины | C122: 180 | D122: 10 | E122: 9.5 | F122: 35 | G122: 266 | H122: ТТК №29 Д
A123: Кисель | C123: 180 | F123: 10.00 | G123: 40.00 | H123: №284Партнер2014
A124: Хлеб пшеничный 1с | C124: 23 | D124: 1.80 | E124: 0.23 | F124: 11.30 | G124: 54.50
A125: Хлеб сельский | C125: 37.5 | D125: 1.8 | E125: 0.4 | F125: 18 | G125: 82.5
A126: Итого: | C126: 675.5 | D126: =SUM(D120:D125) -> 18.75 | E126: =SUM(E120:E125) -> 18.23 | F126: =SUM(F120:F125) -> 93.20 | G126: =SUM(G120:G125) -> 613.50
B127: ПОЛДНИК
A128: Кондитерские изделия | C128: 21 | D128: 1.20 | E128: 2.00 | F128: 34.00 | G128: 160.60
A129: вафли
A130: Катык | C130: 120 | D130: 3.77 | E130: 3 | F130: 5 | G130: 62.1 | H130: №401Дели2010
A131: Суфле из творога с молоком сгущенным | C131: 150/20 | D131: 9.00 | E131: 12.50 | F131: 24.00 | G131: 244.50 | H131: ТТК №567
A132: Напиток шиповника | C132: 180/5 | D132: 0.6 | E132: 0.3 | F132: 6.5 | G132: 31.1 | H132: ТТК № 59
A133: Итого: | C133: 496 | D133: =SUM(D128:D132) -> 14.57 | E133: =SUM(E128:E132) -> 17.80 | F133: =SUM(F128:F132) -> 69.50 | G133: =SUM(G128:G132) -> 498.30
A134: ВСЕГО: | C134: =C114+C117+C126+C133 -> 1721.5 | D134: =D114+D117+D126+D133 -> 60.34 | E134: =E114+E117+E126+E133 -> 51.17 | F134: =F114+F117+F126+F133 -> 216.04 | G134: =G114+G117+G126+G133 -> 1573.20
A137: День 5 - ый
A138: Прием пищи | C138: Выход блюда | D138: Пищевые вещества (г) | G138: Энергетическая | H138: № рецептуры
A139: Наименование блюд | G139: ценность
D140: белки | E140: жиры | F140: угл-ды | G140: Ккал
B141: ЗАВТРАК
A142: Каша полбяная молочная с маслом | C142: 200/5 | D142: 7.30 | E142: 7.42 | F142: 22.80 | G142: 187.20 | H142: ТТК №1
A143: Какао с молоком | C143: 180 | D143: 2.42 | E143: 2.58 | F143: 13.61 | G143: 87.30 | H143: №272 Парнер г. Уфа 2014
A144: Бутерброд с маслом сливочным | C144: 30/5 | D144: 2.30 | E144: 4.50 | F144: 15.40 | G144: 111.00 | H144: №1 Дели2010
A145: Итого: | C145: 420 | D145: =SUM(D141:D144) -> 12.02 | E145: =SUM(E141:E144) -> 14.50 | F145: =SUM(F141:F144) -> 51.81 | G145: =SUM(G141:G144) -> 385.50
A146: Сок | C146: 125 | D146: 0.87 | E146: 0.25 | F146: 20.00 | G146: 85.00 | H146: №418Дели2016
A147: вишневый
A148: Итого: | C148: =SUM(C146) -> 125 | D148: =SUM(D146:D147) -> 0.87 | E148: =SUM(E146:E147) -> 0.25 | F148: 16.50 | G148: 71.00
C149: 545 | D149: =D145+D148 -> 12.89 | E149: =E145+E148 -> 14.75 | F149: =F145+F148 -> 68.31 | G149: =G145+G148 -> 456.50
B150: ОБЕД
A151: Салат из свежих помидоров и огурцов | C151: 50 | D151: 0.50 | E151: 3.00 | F151: 2.00 | G151: 37.00 | H151: № 15 Дели 2016
A152: Свекольник с курицей, со сметаной | C152: 200/10/6 | D152: 3.80 | E152: 5.40 | F152: 15.20 | G152: 124.60 | H152: №35,сб Пермь2001
A153: Плов из курицы | C153: 160 | D153: 11.8 | E153: 13.5 | F153: 38.9 | G153: 324 | H153: №321 Дели 2016
A154: Компот из свежих яблок | C154: 180 | D154: 0.10 | E154: 0.10 | F154: 11.80 | G154: 48.50 | H154: № 390 Дели 2016
A155: Хлеб сельский | C155: 37.5 | D155: 1.8 | E155: 0.4 | F155: 18 | G155: 82.5
A156: Хлеб пшеничный 1с | C156: 23 | D156: =SUM(D151:E155) -> 40.40 | E156: =SUM(E151:F155) -> 108.30 | F156: =SUM(F151:G155) -> 702.50 | G156: =SUM(G151:G155) -> 616.60
A157: Итого: | C157: 643.5 | D157: =SUM(D150:D155) -> 18.00 | E157: =SUM(E150:E155) -> 22.40 | F157: =SUM(F150:F155) -> 85.90 | G157: =SUM(G150:G155) -> 616.60
B158: ПОЛДНИК
A159: Плюшка новомосковская | C159: 50 | D159: 2.50 | E159: 4.00 | F159: 24.00 | G159: 142.00 | H159: №184 "Партнер"г. Уфа2010
A160: Кефир | C160: 120 | D160: 3.50 | E160: 3.00 | F160: 4.80 | G160: 60.20 | H160: №401 Дели2010
A161: Чай с сахаром | C161: 180/5 | D161: 0.06 | E161: 0.02 | F161: 4.99 | G161: 20.38 | H161: № 411 Дели2016
A162: Итого: | C162: 378 | D162: =SUM(D158:D161) -> 6.06 | E162: =SUM(E158:E161) -> 7.02 | F162: =SUM(F158:F161) -> 33.79 | G162: =SUM(G158:G161) -> 222.58
A163: ВСЕГО: | C163: =C145+C148+C157+C162 -> 1566.5 | D163: =D145+D148+D157+D162 -> 36.95 | E163: =E145+E148+E157+E162 -> 44.17 | F163: =F145+F148+F157+F162 -> 188.00 | G163: =G145+G148+G157+G162 -> 1295.68
A165: День 6 - ой
A166: Прием пищи | C166: Выход блюда | D166: Пищевые вещества (г) | G166: Энергетическая | H166: № рецептуры
A167: Наименование блюд | G167: ценность
D168: белки | E168: жиры | F168: угл-ды | G168: Ккал
B169: ЗАВТРАК
A170: Каша Геркулесовая молочная с маслом | C170: 200/5 | D170: 6.70 | E170: 7.50 | F170: 22.00 | G170: 182.30 | H170: ТТК №5
A171: Чай с молоком,сахаром | C171: 180/5 | D171: 2.60 | E171: 2.30 | F171: 14.30 | G171: 89.00 | H171: № 394 Дели2010
A172: Бутерброд с сыром, маслом | C172: 30/7/3 | D172: 4.80 | E172: 7.20 | F172: 15.40 | G172: 146.00 | H172: №3 Дели2010
A173: Итого: | C173: 430 | D173: =SUM(D170:D172) -> 14.10 | E173: =SUM(E170:E172) -> 17.00 | F173: =SUM(F170:F172) -> 51.70 | G173: =SUM(G170:G172) -> 417.30
A174: Фрукты свежие | C174: 100 | D174: 0.40 | E174: 0.40 | F174: 12.00 | G174: 53.20 | H174: № 386 Дели 2016
A175: яблоко
A176: Итого: | C176: =SUM(C174) -> 100 | D176: =SUM(D174:D175) -> 0.40 | E176: =SUM(E174:E175) -> 0.40 | F176: 12.00 | G176: 53.20
C177: 530 | D177: =D173+D176 -> 14.50 | E177: 15.40 | F177: =F173+F176 -> 63.70 | G177: =G173+G176 -> 470.50
B178: ОБЕД
A179: Салат из свежей капусты | C179: 50 | D179: 0.70 | E179: 2.50 | F179: 4.50 | G179: 43.50 | H179: №21 Дели2016
A180: Рассольник ленинградский с курицей, со сметаной | C180: 200/15/5 | D180: 3.56 | E180: 4.50 | F180: 17.60 | G180: 125.00 | H180: №82 Дели 2016
A181: Биточки куриные "Солнышко" | C181: 70 | D181: 8.00 | E181: 10.50 | F181: 6.20 | G181: 152.00 | H181: ТТК №97Д
A182: Макароны отварные | C182: 130 | D182: 4.80 | E182: 3.60 | F182: 29.40 | G182: 169.20 | H182: №218 Дели 2016
A183: Кисель | C183: 180 | F183: 10.00 | G183: 40.00 | H183: №284Партнер2014
A184: Хлеб пшеничный 1с | C184: 23 | D184: 1.80 | E184: 0.23 | F184: 11.30 | G184: 54.50
A185: Хлеб сельский | C185: 37.5 | D185: 1.8 | E185: 0.4 | F185: 18 | G185: 82.5
A186: Итого: | C186: 710.5 | D186: =SUM(D179:D185) -> 20.66 | E186: =SUM(E179:E185) -> 21.73 | F186: 97.00 | G186: 666.70
B187: ПОЛДНИК
A188: Фрукты свежие | C188: 100 | D188: 0.40 | E188: 0.40 | F188: 10.00 | G188: 45.20 | H188: №386Дели2016
A189: яблоко
A190: Ряженка | C190: 120 | D190: 4.30 | E190: 3.00 | F190: 5.00 | G190: 64.00 | H190: №401 Дели2010
A191: Булочка сдобная | C191: 50 | D191: 2.2 | E191: 4.8 | F191: 19.3 | G191: 130 | H191: Партнер2014 г. Уфа
A192: Напиток шиповника | C192: 180/5 | D192: 0.6 | E192: 0.3 | F192: 6.5 | G192: 31.1 | H192: ТТК № 59
A193: Итого: | C193: 455 | D193: =SUM(D187:D192) -> 7.50 | E193: =SUM(E187:E192) -> 8.50 | F193: =SUM(F187:F192) -> 40.80 | G193: =SUM(G187:G192) -> 270.30
A194: ВСЕГО: | C194: =C173+C176+C186+C193 -> 1695.5 | D194: =D173+D176+D186+D193 -> 42.66 | E194: =E173+E176+E186+E193 -> 47.63 | F194: =F173+F176+F186+F193 -> 201.50 | G194: =G173+G176+G186+G193 -> 1407.50
A196: День 7 - ой
A197: Прием пищи | C197: Выход блюда | D197: Пищевые вещества (г) | G197: Энергетическая | H197: № рецептуры
A198: Наименование блюд | G198: ценность
D199: белки | E199: жиры | F199: угл-ды | G199: Ккал
B200: ЗАВТРАК
A201: Каша рисовая молочная с маслом | C201: 200/5 | D201: 8.00 | E201: 6.35 | F201: 16.00 | G201: 153.00 | H201: ТТК №8
A202: Кофейный напиток с молоком | C202: 180 | D202: 1.22 | E202: 1.34 | F202: 11.94 | G202: 65.00 | H202: №270 Партнер г. Уфа 2014
A203: Бутерброд с маслом сливочным | C203: 30/5 | D203: 2.30 | E203: 4.50 | F203: 15.40 | G203: 111.00 | H203: №1 Дели2010
A204: Итого: | C204: 420 | D204: =SUM(D200:D203) -> 11.52 | E204: =SUM(E200:E203) -> 12.19 | F204: =SUM(F200:F203) -> 43.34 | G204: =SUM(G200:G203) -> 329.00
A205: Сок | C205: 125 | D205: 1.30 | E205: 2.00 | F205: 28.00 | G205: 135.00 | H205: №418Дели2016
A206: персик-банан
A207: Итого: | C207: =SUM(C205) -> 125 | D207: =SUM(D205:D206) -> 1.30 | E207: =SUM(E205:E206) -> 2.00 | F207: 28.00 | G207: 135.00
C208: 545 | D208: =D204+D207 -> 12.82 | E208: =E204+E207 -> 14.19 | F208: =F204+F207 -> 71.34 | G208: =G204+G207 -> 464.00
B209: ОБЕД
... 132 more rows

Sheet свод1-3
B1: Расход продуктов ДОУ
D2: от 1 до 3 лет | K2: нетто
A3: Наименов. прод. | B3: 1 | C3: 2 | D3: 3 | E3: 4 | F3: 5 | G3: 6 | H3: 7 | I3: 8 | J3: 9 | K3: 10 | L3: Кол-во | M3: Среднее
A5: Сахар | B5: 20.10 | C5: 23.89 | D5: 15.27 | E5: 23.45 | F5: 19.45 | G5: 22.90 | H5: 23.55 | I5: 18.05 | J5: 25.75 | K5: 17.25 | L5: 209.66 | M5: 20.97
A6: Заварка | B6: 0.20 | C6: 0.30 | D6: 0.40 | E6: 0.00 | F6: 0.20 | G6: 0.40 | H6: 0.30 | I6: 0.20 | J6: 0.20 | K6: 0.20 | L6: 2.40 | M6: 0.24
A7: Яйцо | B7: 0.80 | C7: 11.50 | D7: 33.42 | E7: 4.70 | F7: 0.80 | G7: 5.40 | H7: 7.76 | I7: 2.00 | J7: 12.60 | K7: 98.62 | L7: 177.60 | M7: 17.76
A8: Дрожжи сухие | B8: 0.16 | C8: 0.00 | D8: 0.20 | E8: 0.00 | F8: 0.20 | G8: 0.30 | H8: 0.00 | I8: 0.16 | J8: 0.00 | K8: 0.16 | L8: 1.18 | M8: 0.12
A9: Батон нарезной | B9: 25.00 | C9: 25.00 | D9: 25.00 | E9: 25.00 | F9: 25.00 | G9: 25.00 | H9: 25.00 | I9: 25.00 | J9: 25.00 | K9: 25.00 | L9: 250.00 | M9: 25.00
A10: Хлеб пшеничный 1с | B10: 24.00 | C10: 20.00 | D10: 20.00 | E10: 20.00 | F10: 20.00 | G10: 20.00 | H10: 37.00 | I10: 20.00 | J10: 26.60 | K10: 20.00 | L10: 227.60 | M10: 22.76
A11: Хлеб сельский | B11: 30.00 | C11: 30.00 | D11: 30.00 | E11: 30.00 | F11: 30.00 | G11: 30.00 | H11: 30.00 | I11: 30.00 | J11: 30.00 | K11: 30.00 | L11: 300.00 | M11: 30.00
A12: Мука пшеничная | B12: 27.00 | C12: 0.00 | D12: 23.01 | E12: 0.00 | F12: 28.00 | G12: 24.00 | H12: 4.25 | I12: 19.30 | J12: 35.10 | K12: 19.85 | L12: 180.51 | M12: 18.05
A13: Кисель-концентрат | B13: 17.50 | C13: 0.00 | D13: 0.00 | E13: 17.50 | F13: 0.00 | G13: 17.50 | H13: 17.50 | I13: 0.00 | J13: 17.50 | K13: 0.00 | L13: 87.50 | M13: 8.75
A14: Макаронные изделия | B14: 0.00 | C14: 0.00 | D14: 0.00 | E14: 0.00 | F14: 0.00 | G14: 38.50 | H14: 0.00 | I14: 0.00 | J14: 0.00 | K14: 0.00 | L14: 38.50 | M14: 3.85
A15: Вермишель | B15: 6.00 | C15: 0.00 | D15: 0.00 | E15: 0.00 | F15: 0.00 | G15: 0.00 | H15: 0.00 | I15: 12.00 | J15: 0.00 | K15: 0.00 | L15: 18.00 | M15: 1.80
A16: Крупа рисовая | B16: 31.90 | C16: 11.00 | D16: 6.50 | E16: 0.00 | F16: 31.28 | G16: 0.00 | H16: 34.60 | I16: 27.70 | J16: 9.00 | K16: 0.00 | L16: 151.98 | M16: 15.20
A17: Крупа кукурузная | B17: 0.00 | C17: 0.00 | D17: 0.00 | E17: 0.00 | F17: 0.00 | G17: 0.00 | H17: 0.00 | I17: 0.00 | J17: 0.00 | K17: 0.00 | L17: 0.00 | M17: 0.00
A18: Крупа манная | B18: 17.00 | C18: 7.25 | D18: 0.00 | E18: 7.70 | F18: 0.00 | G18: 0.00 | H18: 0.00 | I18: 0.00 | J18: 0.00 | K18: 0.00 | L18: 31.95 | M18: 3.20
A19: Горох | B19: 0.00 | C19: 0.00 | D19: 0.00 | E19: 0.00 | F19: 0.00 | G19: 0.00 | H19: 15.00 | I19: 0.00 | J19: 0.00 | K19: 0.00 | L19: 15.00 | M19: 1.50
A20: Крупа пшенная | B20: 0.00 | C20: 8.00 | D20: 0.00 | E20: 23.00 | F20: 0.00 | G20: 0.00 | H20: 0.00 | I20: 0.00 | J20: 0.00 | K20: 23.00 | L20: 54.00 | M20: 5.40
A21: Крупа ячневая | B21: 0.00 | C21: 0.00 | D21: 0.00 | E21: 0.00 | F21: 0.00 | G21: 0.00 | H21: 0.00 | I21: 0.00 | J21: 0.00 | K21: 0.00 | L21: 0.00 | M21: 0.00
A22: Полба | B22: 0.00 | C22: 0.00 | D22: 0.00 | E22: 0.00 | F22: 19.00 | G22: 0.00 | H22: 0.00 | I22: 0.00 | J22: 19.00 | K22: 0.00 | L22: 38.00 | M22: 3.80
A23: Крупа перловая | B23: 0.00 | C23: 0.00 | D23: 0.00 | E23: 0.00 | F23: 0.00 | G23: 6.00 | H23: 0.00 | I23: 0.00 | J23: 0.00 | K23: 0.00 | L23: 6.00 | M23: 0.60
A24: Крупа геркулесовая | B24: 0.00 | C24: 0.00 | D24: 19.00 | E24: 0.00 | F24: 0.00 | G24: 19.00 | H24: 0.00 | I24: 0.00 | J24: 0.00 | K24: 0.00 | L24: 38.00 | M24: 3.80
A25: Крупа пшеничная | B25: 0.00 | C25: 0.00 | D25: 0.00 | E25: 0.00 | F25: 0.00 | G25: 0.00 | H25: 0.00 | I25: 0.00 | J25: 0.00 | K25: 0.00 | L25: 0.00 | M25: 0.00
A26: Крупа гречневая | B26: 0.00 | C26: 0.00 | D26: 9.00 | E26: 0.00 | F26: 0.00 | G26: 0.00 | H26: 0.00 | I26: 0.00 | J26: 0.00 | K26: 27.50 | L26: 36.50 | M26: 3.65
A27: Картофель | B27: 45.00 | C27: 124.43 | D27: 45.00 | E27: 105.10 | F27: 25.90 | G27: 45.00 | H27: 124.43 | I27: 12.00 | J27: 139.43 | K27: 30.00 | L27: 696.29 | M27: 69.63
A28: Морковь | B28: 20.00 | C28: 6.00 | D28: 6.75 | E28: 6.00 | F28: 18.20 | G28: 21.50 | H28: 6.00 | I28: 14.60 | J28: 6.00 | K28: 9.50 | L28: 114.55 | M28: 11.46
A29: Лук репчатый | B29: 25.60 | C29: 15.25 | D29: 19.40 | E29: 17.00 | F29: 12.38 | G29: 10.20 | H29: 10.58 | I29: 12.50 | J29: 13.25 | K29: 6.90 | L29: 143.06 | M29: 14.31
A30: Свекла | B30: 0.00 | C30: 0.00 | D30: 0.00 | E30: 0.00 | F30: 38.30 | G30: 0.00 | H30: 0.00 | I30: 24.00 | J30: 0.00 | K30: 0.00 | L30: 62.30 | M30: 6.23
A31: Капуста свежая | B31: 24.30 | C31: 12.00 | D31: 90.00 | E31: 30.00 | F31: 0.00 | G31: 24.30 | H31: 0.00 | I31: 12.00 | J31: 0.00 | K31: 12.00 | L31: 204.60 | M31: 20.46
A32: Икра кабачковая | B32: 0.00 | C32: 0.00 | D32: 0.00 | E32: 0.00 | F32: 0.00 | G32: 0.00 | H32: 0.00 | I32: 0.00 | J32: 0.00 | K32: 0.00 | L32: 0.00 | M32: 0.00
A33: Огурцы соленые | B33: 0.00 | C33: 0.00 | D33: 0.00 | E33: 0.00 | F33: 0.00 | G33: 9.00 | H33: 0.00 | I33: 0.00 | J33: 0.00 | K33: 0.00 | L33: 9.00 | M33: 0.90
A34: Помидоры свежие | B34: 0.00 | C34: 30.00 | D34: 0.00 | E34: 30.00 | F34: 14.40 | G34: 0.00 | H34: 30.00 | I34: 0.00 | J34: 30.00 | K34: 14.40 | L34: 148.80 | M34: 14.88
A35: Огурцы свежие | B35: 0.00 | C35: 0.00 | D35: 30.00 | E35: 0.00 | F35: 14.10 | G35: 0.00 | H35: 0.00 | I35: 30.00 | J35: 0.00 | K35: 14.10 | L35: 88.20 | M35: 8.82
A36: перец | B36: 0.00 | C36: 0.00 | D36: 0.00 | E36: 0.00 | F36: 0.00 | G36: 0.00 | H36: 0.00 | I36: 0.00 | J36: 0.00 | K36: 0.00 | L36: 0.00 | M36: 0.00
A37: Томат-паста | B37: 0.00 | C37: 0.00 | D37: 0.75 | E37: 0.00 | F37: 0.00 | G37: 0.00 | H37: 0.00 | I37: 0.00 | J37: 0.00 | K37: 2.00 | L37: 2.75 | M37: 0.28
A38: Масло сливочное | B38: 14.00 | C38: 15.00 | D38: 15.82 | E38: 8.00 | F38: 12.40 | G38: 13.80 | H38: 20.30 | I38: 7.00 | J38: 29.00 | K38: 15.10 | L38: 150.42 | M38: 15.04
A39: Масло растительное | B39: 10.00 | C39: 3.25 | D39: 1.60 | E39: 7.40 | F39: 8.70 | G39: 5.30 | H39: 2.50 | I39: 6.40 | J39: 4.10 | K39: 10.20 | L39: 59.45 | M39: 5.95
A40: Фрукты свежие | B40: 100.00 | C40: 100.00 | D40: 100.00 | E40: 100.00 | F40: 0.00 | G40: 200.00 | H40: 0.00 | I40: 100.00 | J40: 0.00 | K40: 100.00 | L40: 800.00 | M40: 80.00
A41: Яблоки | B41: 0.00 | C41: 30.00 | D41: 0.00 | E41: 0.00 | F41: 30.00 | G41: 0.00 | H41: 0.00 | I41: 0.00 | J41: 0.00 | K41: 0.00 | L41: 60.00 | M41: 6.00
A42: крыжовник зам. | B42: 0.00 | C42: 0.00 | D42: 0.00 | E42: 0.00 | F42: 0.00 | G42: 0.00 | H42: 0.00 | I42: 0.00 | J42: 0.00 | K42: 0.00 | L42: 0.00 | M42: 0.00
A43: Лимон | B43: 0.00 | C43: 4.00 | D43: 0.00 | E43: 0.00 | F43: 0.00 | G43: 0.00 | H43: 4.00 | I43: 0.00 | J43: 0.00 | K43: 0.00 | L43: 8.00 | M43: 0.80
A44: Ягодная смесь зам. | B44: 0.00 | C44: 0.00 | D44: 0.00 | E44: 0.00 | F44: 0.00 | G44: 0.00 | H44: 0.00 | I44: 0.00 | J44: 0.00 | K44: 0.00 | L44: 0.00 | M44: 0.00
A45: Сок | B45: 125.00 | C45: 0.00 | D45: 125.00 | E45: 0.00 | F45: 125.00 | G45: 0.00 | H45: 125.00 | I45: 0.00 | J45: 125.00 | K45: 0.00 | L45: 625.00 | M45: 62.50
A46: Курага | B46: 0.00 | C46: 0.00 | D46: 0.00 | E46: 0.00 | F46: 0.00 | G46: 0.00 | H46: 0.00 | I46: 0.00 | J46: 0.00 | K46: 0.00 | L46: 0.00 | M46: 0.00
A47: Сухофрукты | B47: 0.00 | C47: 0.00 | D47: 0.00 | E47: 0.00 | F47: 0.00 | G47: 0.00 | H47: 0.00 | I47: 0.00 | J47: 0.00 | K47: 0.00 | L47: 0.00 | M47: 0.00
A48: Урюк | B48: 0.00 | C48: 0.00 | D48: 12.50 | E48: 0.00 | F48: 0.00 | G48: 6.00 | H48: 0.00 | I48: 12.50 | J48: 0.00 | K48: 12.50 | L48: 43.50 | M48: 4.35
A49: повидло фруктовое | B49: 0.00 | C49: 0.00 | D49: 19.00 | E49: 0.00 | F49: 0.00 | G49: 0.00 | H49: 0.00 | I49: 16.00 | J49: 0.00 | K49: 0.00 | L49: 35.00 | M49: 3.50
A50: Шиповник порошок | B50: 2.25 | C50: 0.00 | D50: 0.00 | E50: 2.25 | F50: 0.00 | G50: 0.00 | H50: 0.00 | I50: 0.00 | J50: 2.25 | K50: 0.00 | L50: 6.75 | M50: 0.68
A51: Молоко | B51: 75.00 | C51: 271.50 | D51: 117.00 | E51: 154.20 | F51: 137.40 | G51: 120.60 | H51: 266.50 | I51: 155.00 | J51: 113.50 | K51: 177.20 | L51: 1587.90 | M51: 158.79
A52: Кефир | B52: 0.00 | C52: 0.00 | D52: 0.00 | E52: 0.00 | F52: 110.00 | G52: 0.00 | H52: 0.00 | I52: 0.00 | J52: 0.00 | K52: 110.00 | L52: 220.00 | M52: 22.00
A53: Ряженка | B53: 0.00 | C53: 0.00 | D53: 110.00 | E53: 0.00 | F53: 0.00 | G53: 110.00 | H53: 0.00 | I53: 0.00 | J53: 110.00 | K53: 0.00 | L53: 330.00 | M53: 33.00
A54: Катык | B54: 110.00 | C54: 0.00 | D54: 0.00 | E54: 110.00 | F54: 0.00 | G54: 0.00 | H54: 0.00 | I54: 110.00 | J54: 0.00 | K54: 0.00 | L54: 330.00 | M54: 33.00
A55: Молоко сгущенное | B55: 0.00 | C55: 10.00 | D55: 0.00 | E55: 10.00 | F55: 0.00 | G55: 0.00 | H55: 10.00 | I55: 0.00 | J55: 0.00 | K55: 0.00 | L55: 30.00 | M55: 3.00
A56: Сметана | B56: 0.00 | C56: 9.00 | D56: 11.60 | E56: 14.50 | F56: 5.00 | G56: 5.00 | H56: 3.40 | I56: 5.00 | J56: 0.00 | K56: 13.23 | L56: 66.73 | M56: 6.67
A57: Творог | B57: 0.00 | C57: 92.00 | D57: 0.00 | E57: 71.43 | F57: 0.00 | G57: 0.00 | H57: 84.50 | I57: 0.00 | J57: 72.50 | K57: 0.00 | L57: 320.43 | M57: 32.04
A58: Говядина | B58: 0.00 | C58: 0.00 | D58: 0.00 | E58: 34.00 | F58: 0.00 | G58: 0.00 | H58: 0.00 | I58: 33.80 | J58: 0.00 | K58: 0.00 | L58: 67.80 | M58: 6.78
A59: Фарш из говядины | B59: 34.30 | C59: 0.00 | D59: 60.40 | E59: 0.00 | F59: 0.00 | G59: 0.00 | H59: 11.40 | I59: 0.00 | J59: 41.15 | K59: 0.00 | L59: 147.25 | M59: 14.73
A60: Цыплята | B60: 14.67 | C60: 14.67 | D60: 0.00 | E60: 0.00 | F60: 69.92 | G60: 53.77 | H60: 0.00 | I60: 0.00 | J60: 22.16 | K60: 14.67 | L60: 189.86 | M60: 18.99
A61: индейка филе | B61: 0.00 | C61: 0.00 | D61: 0.00 | E61: 0.00 | F61: 0.00 | G61: 0.00 | H61: 0.00 | I61: 0.00 | J61: 0.00 | K61: 0.00 | L61: 0.00 | M61: 0.00
A62: Сыр | B62: 0.00 | C62: 5.00 | D62: 0.00 | E62: 5.00 | F62: 0.00 | G62: 5.00 | H62: 0.00 | I62: 5.00 | J62: 0.00 | K62: 19.16 | L62: 39.16 | M62: 3.92
A63: Фарш из минтая | B63: 0.00 | C63: 0.00 | D63: 0.00 | E63: 0.00 | F63: 0.00 | G63: 0.00 | H63: 0.00 | I63: 0.00 | J63: 0.00 | K63: 0.00 | L63: 0.00 | M63: 0.00
A64: Кофейный напиток | B64: 0.00 | C64: 0.00 | D64: 0.00 | E64: 1.30 | F64: 0.00 | G64: 0.00 | H64: 1.30 | I64: 0.00 | J64: 0.00 | K64: 1.30 | L64: 3.90 | M64: 0.39
A65: Какао-порошок | B65: 0.00 | C65: 1.30 | D65: 0.00 | E65: 0.00 | F65: 1.30 | G65: 0.00 | H65: 0.00 | I65: 1.30 | J65: 0.00 | K65: 0.00 | L65: 3.90 | M65: 0.39
A66: печенье | B66: 0.00 | C66: 0.00 | D66: 0.00 | E66: 0.00 | F66: 0.00 | G66: 0.00 | H66: 0.00 | I66: 0.00 | J66: 0.00 | K66: 0.00 | L66: 0.00 | M66: 0.00
A67: крекер | B67: 0.00 | C67: 0.00 | D67: 0.00 | E67: 0.00 | F67: 0.00 | G67: 0.00 | H67: 0.00 | I67: 0.00 | J67: 10.00 | K67: 0.00 | L67: 10.00 | M67: 1.00
A68: Соль | B68: 2.10 | C68: 2.63 | D68: 2.10 | E68: 1.60 | F68: 2.30 | G68: 2.50 | H68: 2.00 | I68: 2.20 | J68: 3.30 | K68: 3.38 | L68: 24.11 | M68: 2.41
A69: Крахмал | B69: 0.00 | C69: 0.00 | D69: 0.00 | E69: 0.00 | F69: 0.00 | G69: 0.00 | H69: 0.00 | I69: 0.00 | J69: 0.00 | K69: 0.00 | L69: 0.00 | M69: 0.00
A70: Сухари панировочные | B70: 0.00 | C70: 7.75 | D70: 0.00 | E70: 0.00 | F70: 0.00 | G70: 4.00 | H70: 0.00 | I70: 0.00 | J70: 4.00 | K70: 0.00 | L70: 15.75 | M70: 1.58
A71: вафли | B71: 0.00 | C71: 0.00 | D71: 0.00 | E71: 21.00 | F71: 0.00 | G71: 0.00 | H71: 21.00 | I71: 0.00 | J71: 0.00 | K71: 0.00 | L71: 42.00 | M71: 4.20
A72: Крупы, бобовые | B72: 48.90 | C72: 26.25 | D72: 34.50 | E72: 30.70 | F72: 50.28 | G72: 25.00 | H72: 49.60 | I72: 27.70 | J72: 28.00 | K72: 50.50 | L72: 371.43 | M72: 37.14
A73: Овощи разные | B73: 69.90 | C73: 63.25 | D73: 146.90 | E73: 83.00 | F73: 97.38 | G73: 65.00 | H73: 46.58 | I73: 93.10 | J73: 49.25 | K73: 58.90 | L73: 773.26 | M73: 77.33
A74: Фрукты | B74: 100.00 | C74: 134.00 | D74: 100.00 | E74: 100.00 | F74: 30.00 | G74: 200.00 | H74: 4.00 | I74: 100.00 | J74: 0.00 | K74: 100.00 | L74: 868.00 | M74: 86.80
A75: Фрукты сухие | B75: 2.25 | C75: 0.00 | D75: 31.50 | E75: 2.25 | F75: 0.00 | G75: 6.00 | H75: 0.00 | I75: 28.50 | J75: 2.25 | K75: 12.50 | L75: 85.25 | M75: 8.53
A76: Молочные прод. | B76: 185.00 | C76: 281.50 | D76: 227.00 | E76: 274.20 | F76: 247.40 | G76: 230.60 | H76: 276.50 | I76: 265.00 | J76: 223.50 | K76: 287.20 | L76: 2497.90 | M76: 249.79
A77: Говядина | B77: 34.30 | C77: 0.00 | D77: 60.40 | E77: 34.00 | F77: 0.00 | G77: 0.00 | H77: 11.40 | I77: 33.80 | J77: 41.15 | K77: 0.00 | L77: 215.05 | M77: 21.51
A78: птица | B78: 14.67 | C78: 14.67 | D78: 0.00 | E78: 0.00 | F78: 69.92 | G78: 53.77 | H78: 0.00 | I78: 0.00 | J78: 22.16 | K78: 14.67 | L78: 189.86 | M78: 18.99
A79: Макаронные изделия | B79: 6.00 | C79: 0.00 | D79: 0.00 | E79: 0.00 | F79: 0.00 | G79: 38.50 | H79: 0.00 | I79: 12.00 | J79: 0.00 | K79: 0.00 | L79: 56.50 | M79: 5.65
A80: Хлеб пшеничный | B80: 49.00 | C80: 45.00 | D80: 45.00 | E80: 45.00 | F80: 45.00 | G80: 45.00 | H80: 62.00 | I80: 45.00 | J80: 51.60 | K80: 45.00 | L80: 477.60 | M80: 47.76
A81: Кондитерские изделия | B81: 0.00 | C81: 0.00 | D81: 0.00 | E81: 21.00 | F81: 0.00 | G81: 0.00 | H81: 21.00 | I81: 0.00 | J81: 10.00 | K81: 0.00 | L81: 52.00 | M81: 5.20
A82: Субпродукты | L82: 0.00 | M82: 0.00
A83: Примечание: расход хлеба пшеничного с учетом расхода сухарей панировочных
B84: Расход продуктов ДОУ
D85: от 1 до 3 лет | K85: брутто
A87: Наименов. прод. | B87: 1 | C87: 2 | D87: 3 | E87: 4 | F87: 5 | G87: 6 | H87: 7 | I87: 8 | J87: 9 | K87: 10 | L87: Кол-во | M87: Среднее
A89: Сахар | B89: 20.10 | C89: 23.89 | D89: 15.27 | E89: 23.45 | F89: 19.45 | G89: 22.90 | H89: 23.55 | I89: 18.05 | J89: 25.75 | K89: 17.25 | L89: 209.66 | M89: 20.97
A90: Заварка | B90: 0.20 | C90: 0.30 | D90: 0.40 | E90: 0.00 | F90: 0.20 | G90: 0.40 | H90: 0.30 | I90: 0.20 | J90: 0.20 | K90: 0.20 | L90: 2.40 | M90: 0.24
A91: Яйцо | B91: 0.80 | C91: 11.50 | D91: 33.42 | E91: 4.70 | F91: 0.80 | G91: 5.40 | H91: 7.76 | I91: 2.00 | J91: 12.60 | K91: 98.62 | L91: 177.60 | M91: 17.76
A92: Дрожжи сухие | B92: 0.16 | C92: 0.00 | D92: 0.20 | E92: 0.00 | F92: 0.20 | G92: 0.30 | H92: 0.00 | I92: 0.16 | J92: 0.00 | K92: 0.16 | L92: 1.18 | M92: 0.12
A93: Батон нарезной | B93: 25.00 | C93: 25.00 | D93: 25.00 | E93: 25.00 | F93: 25.00 | G93: 25.00 | H93: 25.00 | I93: 25.00 | J93: 25.00 | K93: 25.00 | L93: 250.00 | M93: 25.00
A94: Хлеб пшеничный 1с | B94: 24.00 | C94: 20.00 | D94: 20.00 | E94: 20.00 | F94: 20.00 | G94: 20.00 | H94: 39.40 | I94: 20.00 | J94: 26.60 | K94: 20.00 | L94: 230.00 | M94: 23.00
A95: Хлеб сельский | B95: 30.00 | C95: 30.00 | D95: 30.00 | E95: 30.00 | F95: 30.00 | G95: 30.00 | H95: 30.00 | I95: 30.00 | J95: 30.00 | K95: 30.00 | L95: 300.00 | M95: 30.00
A96: Мука пшеничная | B96: 27.00 | C96: 0.00 | D96: 23.01 | E96: 0.00 | F96: 28.00 | G96: 24.00 | H96: 4.25 | I96: 19.30 | J96: 35.10 | K96: 19.85 | L96: 180.51 | M96: 18.05
A97: Кисель-концентрат | B97: 17.50 | C97: 0.00 | D97: 0.00 | E97: 17.50 | F97: 0.00 | G97: 17.50 | H97: 17.50 | I97: 0.00 | J97: 17.50 | K97: 0.00 | L97: 87.50 | M97: 8.75
A98: Макаронные изделия | B98: 0.00 | C98: 0.00 | D98: 0.00 | E98: 0.00 | F98: 0.00 | G98: 38.50 | H98: 0.00 | I98: 0.00 | J98: 0.00 | K98: 0.00 | L98: 38.50 | M98: 3.85
A99: Вермишель | B99: 6.00 | C99: 0.00 | D99: 0.00 | E99: 0.00 | F99: 0.00 | G99: 0.00 | H99: 0.00 | I99: 12.00 | J99: 0.00 | K99: 0.00 | L99: 18.00 | M99: 1.80
A100: Крупа рисовая | B100: 31.90 | C100: 11.00 | D100: 6.50 | E100: 0.00 | F100: 31.28 | G100: 0.00 | H100: 34.60 | I100: 27.70 | J100: 9.00 | K100: 0.00 | L100: 151.98 | M100: 15.20
A101: Крупа кукурузная | B101: 0.00 | C101: 0.00 | D101: 0.00 | E101: 0.00 | F101: 0.00 | G101: 0.00 | H101: 0.00 | I101: 0.00 | J101: 0.00 | K101: 0.00 | L101: 0.00 | M101: 0.00
A102: Крупа манная | B102: 17.00 | C102: 7.25 | D102: 0.00 | E102: 7.70 | F102: 0.00 | G102: 0.00 | H102: 0.00 | I102: 0.00 | J102: 0.00 | K102: 0.00 | L102: 31.95 | M102: 3.20
A103: Горох | B103: 0.00 | C103: 0.00 | D103: 0.00 | E103: 0.00 | F103: 0.00 | G103: 0.00 | H103: 15.20 | I103: 0.00 | J103: 0.00 | K103: 0.00 | L103: 15.20 | M103: 1.52
A104: Крупа пшенная | B104: 0.00 | C104: 8.00 | D104: 0.00 | E104: 23.00 | F104: 0.00 | G104: 0.00 | H104: 0.00 | I104: 0.00 | J104: 0.00 | K104: 23.00 | L104: 54.00 | M104: 5.40
A105: Крупа ячневая | B105: 0.00 | C105: 0.00 | D105: 0.00 | E105: 0.00 | F105: 0.00 | G105: 0.00 | H105: 0.00 | I105: 0.00 | J105: 0.00 | K105: 0.00 | L105: 0.00 | M105: 0.00
A106: Полба | B106: 0.00 | C106: 0.00 | D106: 0.00 | E106: 0.00 | F106: 19.00 | G106: 0.00 | H106: 0.00 | I106: 0.00 | J106: 19.00 | K106: 0.00 | L106: 38.00 | M106: 3.80
A107: Крупа перловая | B107: 0.00 | C107: 0.00 | D107: 0.00 | E107: 0.00 | F107: 0.00 | G107: 6.00 | H107: 0.00 | I107: 0.00 | J107: 0.00 | K107: 0.00 | L107: 6.00 | M107: 0.60
A108: Крупа геркулесовая | B108: 0.00 | C108: 0.00 | D108: 19.00 | E108: 0.00 | F108: 0.00 | G108: 19.00 | H108: 0.00 | I108: 0.00 | J108: 0.00 | K108: 0.00 | L108: 38.00 | M108: 3.80
A109: Крупа пшеничная | B109: 0.00 | C109: 0.00 | D109: 0.00 | E109: 0.00 | F109: 0.00 | G109: 0.00 | H109: 0.00 | I109: 0.00 | J109: 0.00 | K109: 0.00 | L109: 0.00 | M109: 0.00
A110: Крупа гречневая | B110: 0.00 | C110: 0.00 | D110: 9.00 | E110: 0.00 | F110: 0.00 | G110: 0.00 | H110: 0.00 | I110: 0.00 | J110: 0.00 | K110: 27.50 | L110: 36.50 | M110: 3.65
A111: Картофель | B111: 59.85 | C111: 165.49 | D111: 59.85 | E111: 139.74 | F111: 34.45 | G111: 59.85 | H111: 165.50 | I111: 15.96 | J111: 200.80 | K111: 39.90 | L111: 941.39 | M111: 94.14
A112: Морковь | B112: 24.37 | C112: 7.50 | D112: 8.50 | E112: 7.50 | F112: 22.75 | G112: 26.88 | H112: 7.50 | I112: 18.25 | J112: 7.50 | K112: 12.16 | L112: 142.91 | M112: 14.29
A113: Лук репчатый | B113: 30.44 | C113: 18.14 | D113: 23.09 | E113: 20.29 | F113: 14.73 | G113: 11.90 | H113: 12.59 | I113: 14.84 | J113: 15.73 | K113: 8.20 | L113: 169.95 | M113: 17.00
A114: Свекла | B114: 0.00 | C114: 0.00 | D114: 0.00 | E114: 0.00 | F114: 52.09 | G114: 0.00 | H114: 0.00 | I114: 31.92 | J114: 0.00 | K114: 0.00 | L114: 84.01 | M114: 8.40
A115: Капуста свежая | B115: 30.37 | C115: 15.00 | D115: 112.50 | E115: 37.50 | F115: 0.00 | G115: 30.37 | H115: 0.00 | I115: 15.00 | J115: 0.00 | K115: 15.00 | L115: 255.74 | M115: 25.57
A116: Икра кабачковая | B116: 0.00 | C116: 0.00 | D116: 0.00 | E116: 0.00 | F116: 0.00 | G116: 0.00 | H116: 0.00 | I116: 0.00 | J116: 0.00 | K116: 0.00 | L116: 0.00 | M116: 0.00
A117: Огурцы соленые | B117: 0.00 | C117: 0.00 | D117: 0.00 | E117: 0.00 | F117: 0.00 | G117: 16.00 | H117: 0.00 | I117: 0.00 | J117: 0.00 | K117: 0.00 | L117: 16.00 | M117: 1.60
A118: Помидоры свежие | B118: 0.00 | C118: 30.60 | D118: 0.00 | E118: 30.60 | F118: 14.69 | G118: 0.00 | H118: 30.60 | I118: 0.00 | J118: 30.60 | K118: 14.69 | L118: 151.78 | M118: 15.18
A119: Огурцы свежие | B119: 0.00 | C119: 0.00 | D119: 30.60 | E119: 0.00 | F119: 14.38 | G119: 0.00 | H119: 0.00 | I119: 30.60 | J119: 0.00 | K119: 14.38 | L119: 89.96 | M119: 9.00
A120: перец | B120: 0.00 | C120: 0.00 | D120: 0.00 | E120: 0.00 | F120: 0.00 | G120: 0.00 | H120: 0.00 | I120: 0.00 | J120: 0.00 | K120: 0.00 | L120: 0.00 | M120: 0.00
A121: Томат-паста | B121: 0.00 | C121: 0.00 | D121: 0.75 | E121: 0.00 | F121: 0.00 | G121: 0.00 | H121: 0.00 | I121: 0.00 | J121: 0.00 | K121: 2.00 | L121: 2.75 | M121: 0.28
A122: Масло сливочное | B122: 14.00 | C122: 15.00 | D122: 15.82 | E122: 8.00 | F122: 12.40 | G122: 13.80 | H122: 20.30 | I122: 7.00 | J122: 29.00 | K122: 15.10 | L122: 150.42 | M122: 15.04
A123: Масло растительное | B123: 10.00 | C123: 3.25 | D123: 1.60 | E123: 7.40 | F123: 8.70 | G123: 5.30 | H123: 2.50 | I123: 6.40 | J123: 4.10 | K123: 10.20 | L123: 59.45 | M123: 5.95
A124: Фрукты свежие | B124: 114.00 | C124: 114.00 | D124: 114.00 | E124: 114.00 | F124: 0.00 | G124: 228.00 | H124: 0.00 | I124: 114.00 | J124: 0.00 | K124: 114.00 | L124: 912.00 | M124: 91.20
A125: Яблоки | B125: 0.00 | C125: 34.00 | D125: 0.00 | E125: 0.00 | F125: 34.00 | G125: 0.00 | H125: 0.00 | I125: 0.00 | J125: 0.00 | K125: 0.00 | L125: 68.00 | M125: 6.80
A126: крыжовник зам. | B126: 0.00 | C126: 0.00 | D126: 0.00 | E126: 0.00 | F126: 0.00 | G126: 0.00 | H126: 0.00 | I126: 0.00 | J126: 0.00 | K126: 0.00 | L126: 0.00 | M126: 0.00
A127: Лимон | B127: 0.00 | C127: 4.10 | D127: 0.00 | E127: 0.00 | F127: 0.00 | G127: 0.00 | H127: 4.10 | I127: 0.00 | J127: 0.00 | K127: 0.00 | L127: 8.20 | M127: 0.82
A128: Ягодная смесь зам. | B128: 0.00 | C128: 0.00 | D128: 0.00 | E128: 0.00 | F128: 0.00 | G128: 0.00 | H128: 0.00 | I128: 0.00 | J128: 0.00 | K128: 0.00 | L128: 0.00 | M128: 0.00
A129: Сок | B129: 125.00 | C129: 0.00 | D129: 125.00 | E129: 0.00 | F129: 125.00 | G129: 0.00 | H129: 125.00 | I129: 0.00 | J129: 125.00 | K129: 0.00 | L129: 625.00 | M129: 62.50
A130: Курага | B130: 0.00 | C130: 0.00 | D130: 0.00 | E130: 0.00 | F130: 0.00 | G130: 0.00 | H130: 0.00 | I130: 0.00 | J130: 0.00 | K130: 0.00 | L130: 0.00 | M130: 0.00
A131: Сухофрукты | B131: 0.00 | C131: 0.00 | D131: 0.00 | E131: 0.00 | F131: 0.00 | G131: 0.00 | H131: 0.00 | I131: 0.00 | J131: 0.00 | K131: 0.00 | L131: 0.00 | M131: 0.00
A132: Урюк | B132: 0.00 | C132: 0.00 | D132: 12.75 | E132: 0.00 | F132: 0.00 | G132: 6.00 | H132: 0.00 | I132: 12.75 | J132: 0.00 | K132: 12.75 | L132: 44.25 | M132: 4.43
A133: повидло фруктовое | B133: 0.00 | C133: 0.00 | D133: 19.00 | E133: 0.00 | F133: 0.00 | G133: 0.00 | H133: 0.00 | I133: 16.00 | J133: 0.00 | K133: 0.00 | L133: 35.00 | M133: 3.50
A134: Шиповник порошок | B134: 2.25 | C134: 0.00 | D134: 0.00 | E134: 2.25 | F134: 0.00 | G134: 0.00 | H134: 0.00 | I134: 0.00 | J134: 2.25 | K134: 0.00 | L134: 6.75 | M134: 0.68
A135: Молоко | B135: 75.00 | C135: 278.28 | D135: 117.00 | E135: 154.20 | F135: 137.40 | G135: 120.60 | H135: 273.28 | I135: 155.00 | J135: 114.38 | K135: 177.20 | L135: 1602.34 | M135: 160.23
A136: Кефир | B136: 0.00 | C136: 0.00 | D136: 0.00 | E136: 0.00 | F136: 114.00 | G136: 0.00 | H136: 0.00 | I136: 0.00 | J136: 0.00 | K136: 114.00 | L136: 228.00 | M136: 22.80
A137: Ряженка | B137: 0.00 | C137: 0.00 | D137: 114.00 | E137: 0.00 | F137: 0.00 | G137: 114.00 | H137: 0.00 | I137: 0.00 | J137: 114.00 | K137: 0.00 | L137: 342.00 | M137: 34.20
A138: Катык | B138: 114.00 | C138: 0.00 | D138: 0.00 | E138: 114.00 | F138: 0.00 | G138: 0.00 | H138: 0.00 | I138: 114.00 | J138: 0.00 | K138: 0.00 | L138: 342.00 | M138: 34.20
A139: Молоко сгущенное | B139: 0.00 | C139: 10.00 | D139: 0.00 | E139: 10.00 | F139: 0.00 | G139: 0.00 | H139: 10.00 | I139: 0.00 | J139: 0.00 | K139: 0.00 | L139: 30.00 | M139: 3.00
A140: Сметана | B140: 0.00 | C140: 9.00 | D140: 11.60 | E140: 14.50 | F140: 5.00 | G140: 5.00 | H140: 3.40 | I140: 5.00 | J140: 0.00 | K140: 13.30 | L140: 66.80 | M140: 6.68
A141: Творог | B141: 0.00 | C141: 93.30 | D141: 0.00 | E141: 72.85 | F141: 0.00 | G141: 0.00 | H141: 85.70 | I141: 0.00 | J141: 73.60 | K141: 0.00 | L141: 325.45 | M141: 32.55
A142: Говядина | B142: 0.00 | C142: 0.00 | D142: 0.00 | E142: 34.00 | F142: 0.00 | G142: 0.00 | H142: 0.00 | I142: 33.80 | J142: 0.00 | K142: 0.00 | L142: 67.80 | M142: 6.78
A143: Фарш из говядины | B143: 34.30 | C143: 0.00 | D143: 60.40 | E143: 0.00 | F143: 0.00 | G143: 0.00 | H143: 11.40 | I143: 0.00 | J143: 41.15 | K143: 0.00 | L143: 147.25 | M143: 14.73
A144: Цыплята | B144: 22.57 | C144: 22.57 | D144: 0.00 | E144: 0.00 | F144: 107.54 | G144: 82.72 | H144: 0.00 | I144: 0.00 | J144: 34.10 | K144: 22.57 | L144: 292.07 | M144: 29.21
A145: индейка филе | B145: 0.00 | C145: 0.00 | D145: 0.00 | E145: 0.00 | F145: 0.00 | G145: 0.00 | H145: 0.00 | I145: 0.00 | J145: 0.00 | K145: 0.00 | L145: 0.00 | M145: 0.00
A146: Сыр | B146: 0.00 | C146: 5.10 | D146: 0.00 | E146: 5.10 | F146: 0.00 | G146: 5.10 | H146: 0.00 | I146: 5.10 | J146: 0.00 | K146: 19.50 | L146: 39.90 | M146: 3.99
A147: рыба | B147: 0.00 | C147: 49.34 | D147: 0.00 | E147: 0.00 | F147: 0.00 | G147: 0.00 | H147: 52.63 | I147: 0.00 | J147: 0.00 | K147: 0.00 | L147: 101.97 | M147: 10.20
A148: Кофейный напиток | B148: 0.00 | C148: 0.00 | D148: 0.00 | E148: 1.30 | F148: 0.00 | G148: 0.00 | H148: 1.30 | I148: 0.00 | J148: 0.00 | K148: 1.30 | L148: 3.90 | M148: 0.39
A149: Какао-порошок | B149: 0.00 | C149: 1.30 | D149: 0.00 | E149: 0.00 | F149: 1.30 | G149: 0.00 | H149: 0.00 | I149: 1.30 | J149: 0.00 | K149: 0.00 | L149: 3.90 | M149: 0.39
A150: печенье | B150: 0.00 | C150: 0.00 | D150: 0.00 | E150: 0.00 | F150: 0.00 | G150: 0.00 | H150: 0.00 | I150: 0.00 | J150: 0.00 | K150: 0.00 | L150: 0.00 | M150: 0.00
A151: крекер | B151: 0.00 | C151: 0.00 | D151: 0.00 | E151: 0.00 | F151: 0.00 | G151: 0.00 | H151: 0.00 | I151: 0.00 | J151: 10.00 | K151: 0.00 | L151: 10.00 | M151: 1.00
A152: Соль | B152: 2.10 | C152: 2.63 | D152: 2.10 | E152: 1.60 | F152: 2.30 | G152: 2.50 | H152: 2.00 | I152: 2.20 | J152: 3.30 | K152: 3.38 | L152: 24.11 | M152: 2.41
A153: Крахмал | B153: 0.00 | C153: 0.00 | D153: 0.00 | E153: 0.00 | F153: 0.00 | G153: 0.00 | H153: 0.00 | I153: 0.00 | J153: 0.00 | K153: 0.00 | L153: 0.00 | M153: 0.00
A154: Сухари панировочные | B154: 0.00 | C154: 7.75 | D154: 0.00 | E154: 0.00 | F154: 0.00 | G154: 4.00 | H154: 0.00 | I154: 0.00 | J154: 4.00 | K154: 0.00 | L154: 15.75 | M154: 1.58
A155: вафли | B155: 0.00 | C155: 0.00 | D155: 0.00 | E155: 21.00 | F155: 0.00 | G155: 0.00 | H155: 21.00 | I155: 0.00 | J155: 0.00 | K155: 0.00 | L155: 42.00 | M155: 4.20
A156: Крупы, бобовые | B156: 48.90 | C156: 26.25 | D156: 34.50 | E156: 30.70 | F156: 50.28 | G156: 25.00 | H156: 49.80 | I156: 27.70 | J156: 28.00 | K156: 50.50 | L156: 371.63 | M156: 37.16
A157: Овощи разные | B157: 85.18 | C157: 71.24 | D157: 175.44 | E157: 95.89 | F157: 118.64 | G157: 85.15 | H157: 50.69 | I157: 110.61 | J157: 53.83 | K157: 66.43 | L157: 913.10 | M157: 91.31
A158: Фрукты | B158: 114.00 | C158: 152.10 | D158: 114.00 | E158: 114.00 | F158: 34.00 | G158: 228.00 | H158: 4.10 | I158: 114.00 | J158: 0.00 | K158: 114.00 | L158: 988.20 | M158: 98.82
A159: Фрукты сухие | B159: 0.00 | C159: 0.00 | D159: 31.75 | E159: 0.00 | F159: 0.00 | G159: 6.00 | H159: 0.00 | I159: 28.75 | J159: 0.00 | K159: 12.75 | L159: 79.25 | M159: 7.93
A160: Молочные прод. | B160: 189.00 | C160: 288.28 | D160: 231.00 | E160: 278.20 | F160: 251.40 | G160: 234.60 | H160: 283.28 | I160: 269.00 | J160: 228.38 | K160: 291.20 | L160: 2544.34 | M160: 254.43
A161: Говядина | B161: 34.30 | C161: 0.00 | D161: 60.40 | E161: 34.00 | F161: 0.00 | G161: 0.00 | H161: 11.40 | I161: 33.80 | J161: 41.15 | K161: 0.00 | L161: 215.05 | M161: 21.51
A162: птица | B162: 22.57 | C162: 22.57 | D162: 0.00 | E162: 0.00 | F162: 107.54 | G162: 82.72 | H162: 0.00 | I162: 0.00 | J162: 34.10 | K162: 22.57 | L162: 292.07 | M162: 29.21
A163: Макаронные изделия | B163: 6.00 | C163: 0.00 | D163: 0.00 | E163: 0.00 | F163: 0.00 | G163: 38.50 | H163: 0.00 | I163: 12.00 | J163: 0.00 | K163: 0.00 | L163: 56.50 | M163: 5.65
A164: Хлеб пшеничный | B164: 49.00 | C164: 45.00 | D164: 45.00 | E164: 45.00 | F164: 45.00 | G164: 45.00 | H164: 64.40 | I164: 45.00 | J164: 51.60 | K164: 45.00 | L164: 480.00 | M164: 48.00
A165: Кондитерские изделия | B165: 0.00 | C165: 0.00 | D165: 0.00 | E165: 21.00 | F165: 0.00 | G165: 0.00 | H165: 21.00 | I165: 0.00 | J165: 10.00 | K165: 0.00 | L165: 52.00 | M165: 5.20
A166: Сумма

Sheet раскл1-3
C1: Меню-раскладка к примерному 10-дневному меню
C2: для организации питания детей в дошкольных образовательных учреждениях
C3: от 1-3 лет
A5: День 1 - ый
A6: Прием пищи | C6: Выход блюда | D6: Кол - во | E6: Кол - во | F6: Пищевые вещества (г) | I6: Энергетическая | J6: № рецептуры
A7: Наименование блюд | D7: (в гр ) | E7: (в гр ) | I7: ценность
D8: брутто | E8: нетто | F8: белки | G8: жиры | H8: угл-ды | I8: Ккал
B9: ЗАВТРАК
A10: Каша манная молочная с маслом | C10: 150/5 | F10: 7.50 | G10: 7.50 | H10: 18.40 | I10: 171.10 | J10: ТТК №4
B11: Крупа манная | D11: 15.00 | E11: 15.00
B12: Молоко | D12: 75.00 | E12: 75.00
B13: Вода | D13: 57.00 | E13: 57.00
B14: Сахар | D14: 2.00 | E14: 2.00
B15: Соль | D15: 0.80 | E15: 0.80
B16: Масло сливочное | D16: 5.00 | E16: 5.00
A17: Чай с сахаром | C17: 160/4 | F17: 0.05 | G17: 0.01 | H17: 4.42 | I17: 18.00 | J17: № 411 Дели2016
B18: Заварка | D18: 0.2 | E18: 0.2
B19: сахар | D19: 4 | E19: 4
B20: Вода | D20: 160 | E20: 160
A21: Бутерброд с маслом сливочным | C21: 25/5 | F21: 1.9 | G21: 4.4 | H21: 13 | I21: 99 | J21: №1 Дели2010
B22: Батон нарезной | D22: 25 | E22: 25
B23: Масло сливочное | D23: 5 | E23: 5
A24: Итого: | C24: 350 | F24: =SUM(F9:F23) -> 9.45 | G24: =SUM(G9:G23) -> 11.91 | H24: =SUM(H9:H23) -> 35.82 | I24: =SUM(I9:I23) -> 288.10
A25: Сок | C25: 125 | D25: 125 | E25: 125 | F25: 0.60 | G25: 0.30 | H25: 13.00 | I25: 57.00 | J25: №399Дели2010
A26: персиковый
A27: Итого: | C27: 125 | F27: =SUM(F25) -> 0.60 | G27: =SUM(G25) -> 0.30 | H27: =SUM(H25) -> 13.00 | I27: =SUM(I25) -> 57.00
C28: 474 | F28: =F24+F27 -> 10.05 | G28: =G24+G27 -> 12.21 | H28: =H24+H27 -> 48.82 | I28: =I24+I27 -> 345.10
B29: ОБЕД
A30: Салат из свежей капусты | C30: 30 | F30: 0.42 | G30: 1.50 | H30: 2.70 | I30: 26.00 | J30: №21, Дели 2016
B31: Капуста свежая | D31: 30.37 | E31: 24.30
B32: Морковь | D32: 3.12 | E32: 3.00
B33: Сахар | D33: 0.50 | E33: 0.50
B34: Масло растительное | D34: 1.50 | E34: 1.50
B35: соль | D35: 0.10 | E35: 0.10
A36: Суп вермишелевый с картофелем и курицей | C36: 150/10 | F36: 3.00 | G36: 4.30 | H36: 11.30 | I36: 96.00 | J36: №88 Дели 2016
B37: цыплята | D37: 22.57 | E37: 14.67
B38: Картофель | D38: 59.9 | E38: 45.0
B39: Морковь | D39: 7.5 | E39: 6.0
B40: Лук репчатый | D40: 7.1 | E40: 6.0
B41: Вермишель | D41: 6.0 | E41: 6.0
B42: Масло растительное | D42: 1.8 | E42: 1.8
B43: Соль | D43: 0.5 | E43: 0.5
B44: Вода | D44: 114.0 | E44: 114.0
A45: Тефтели из говядины | C45: 50 | F45: 4.4 | G45: 4.6 | H45: 3.5 | I45: 73 | J45: ТТК № 1152 от 09.10.2020 и №364 С-Петербург 2008
B46: фарш из говядины | D46: 34.3 | E46: 34.3
B47: Хлеб пшеничный 1с | D47: 4 | E47: 4
B48: Вода | D48: 4 | E48: 4
B49: Лук репчатый | D49: 10.2 | E49: 8.6
B50: Крупа манная | D50: 2 | E50: 2
B51: Соль | D51: 0.3 | E51: 0.3
B52: масса полуфабриката | E52: 53
B53: Масло растительное | D53: 1 | E53: 1
A54: Рис отварной с овощами | C54: 110 | F54: 5.5 | G54: 4.55 | H54: 32.67 | I54: 193.6 | J54: №334 Дели2016
B55: Крупа рисовая | D55: 31.9 | E55: 31.9
B56: Вода | D56: 68.2 | E56: 68.2
B57: Масса каши | E57: 90.5
B58: Масло сливочное | D58: 4 | E58: 4
B59: Морковь | D59: 13.75 | E59: 11
B60: Масса припущенной моркови | E60: 6.2
B61: Лук репчатый | D61: 13.1 | E61: 11
B62: Масса припущенного лука | E62: 5.5
B63: Соль | D63: 0.2 | E63: 0.2
A64: Кисель | C64: 150 | H64: 8.34 | I64: 33.34 | J64: №284Партнер2014
B65: Кисель-концентрат | D65: 17.50 | E65: 17.50
B66: Сахар | D66: 4.00 | E66: 4.00
B67: вода | D67: 150.00 | E67: 150.00
A68: Хлеб пшеничный 1с | C68: 20 | D68: 20 | E68: 20 | F68: 1.6 | G68: 0.2 | H68: 9.8 | I68: 47
A69: Хлеб сельский | C69: 30 | D69: 30 | E69: 30 | F69: 1.5 | G69: 0.3 | H69: 14.3 | I69: 66
A70: Итого: | C70: 555.00 | F70: =SUM(F45:F69) -> 13.00 | G70: =SUM(G45:G69) -> 9.65 | H70: =SUM(H45:H69) -> 68.61 | I70: =SUM(I45:I69) -> 412.94
B71: ПОЛДНИК
A72: Фрукты свежие | C72: 100 | D72: 114 | E72: 100 | F72: 0.40 | G72: 0.40 | H72: 10.00 | I72: 45.20 | J72: №386Дели2016
A73: яблоко
A74: Катык | C74: 110 | F74: 3.00 | G74: 2.70 | H74: 4.50 | I74: 54.30 | J74: №401Дели2010
B75: катык | D75: 114 | E75: 110
A76: Булочка Домашняя | C76: 40 | F76: 3.90 | G76: 3.50 | H76: 22.40 | I76: 137.00 | J76: №258 Партнер г. Уфа 2014
B77: Мука пшеничная | D77: 27.00 | E77: 27.00
B78: Сахар | D78: 5.60 | E78: 5.60
B79: вода | D79: 11.20 | E79: 11.20
B80: Масло растительное | D80: 5.60 | E80: 5.60
B81: Дрожжи сухие | D81: 0.16 | E81: 0.16
B82: Соль | D82: 0.20 | E82: 0.20
B83: Яйцо | D83: 0.80 | E83: 0.80
B84: Масса полуфабриката | E84: 48.40
B85: Масло растительное | D85: 0.10 | E85: 0.10
A86: Напиток шиповника | C86: 150/4 | F86: 0.5 | G86: 0.25 | H86: 5.4 | I86: 25.9 | J86: ТТК № 59
B87: шиповник порошок | D87: 2.25 | E87: 2.25
B88: Сахар | D88: 4 | E88: 4
B89: Вода | D89: 150 | E89: 150
A90: Итого: | C90: 404.00 | F90: =SUM(F71:F89) -> 7.80 | G90: =SUM(G71:G89) -> 6.85 | H90: 42.30 | I90: 262.40
A91: ВСЕГО: | C91: =C24+C27+C70+C90 -> 1434.00 | F91: =F24+F27+F70+F90 -> 30.85 | G91: =G24+G27+G70+G90 -> 28.71 | H91: =H24+H27+H70+H90 -> 159.73 | I91: =I24+I27+I70+I90 -> 1020.44
A93: День 2- ой
A94: Прием пищи | C94: Выход блюда | D94: Кол - во | E94: Кол - во | F94: Пищевые вещества (г) | I94: Энергетическая | J94: № рецептуры
A95: Наименование блюд | D95: (в гр ) | E95: (в гр ) | I95: ценность
D96: брутто | E96: нетто | F96: белки | G96: жиры | H96: угл-ды | I96: Ккал
B97: ЗАВТРАК
A98: Каша "Дружба" молочная с маслом | C98: 150/5 | F98: 3.90 | G98: 4.38 | H98: 19.00 | I98: 131.00 | J98: ТТК №7
B99: Крупа рисовая | D99: 11 | E99: 11
B100: Крупа пшенная | D100: 8 | E100: 8
B101: Молоко | D101: 65 | E101: 65
B102: Вода | D102: 65 | E102: 65
B103: Сахар | D103: 0.75 | E103: 0.75
B104: Соль | D104: 0.5 | E104: 0.5
B105: Масло сливочное | D105: 5 | E105: 5
A106: Какао с молоком | C106: 160 | F106: 2.00 | G106: 2.20 | H106: 11.30 | I106: 73.30 | J106: №272 Парнер г. Уфа 2014
B107: Какао-порошок | D107: 1.3 | E107: 1.3
B108: Сахар | D108: 7 | E108: 7
B109: Молоко | D109: 80 | E109: 80
B110: вода | D110: 90 | E110: 90
A111: Бутерброд с сыром, маслом | C111: 25/5/3 | F111: 3.50 | G111: 5.95 | H111: 12.90 | I111: 119.60 | J111: №3Дели2010
B112: Батон нарезной | D112: 25 | E112: 25
B113: Сыр | D113: 5.1 | E113: 5
B114: Масло сливочное | D114: 3 | E114: 3
A115: Итого: | C115: 350 | F115: =SUM(F97:F114) -> 9.40 | G115: 12.33 | H115: =SUM(H97:H114) -> 43.20 | I115: =SUM(I97:I114) -> 323.90
A116: Фрукты свежие | C116: 100 | D116: 114 | E116: 100 | F116: 1.00 | G116: 0.00 | H116: 8.10 | I116: 36.00 | J116: № 368 Дели 2010
A117: апельсин
A118: Итого: | C118: 100 | F118: =SUM(F116) -> 1.00 | G118: =SUM(G116) -> 0.00 | H118: =SUM(H116) -> 8.10 | I118: =SUM(I116) -> 36.00
C119: 450 | F119: =F115+F118 -> 10.40 | G119: =G115+G118 -> 12.33 | H119: =H115+H118 -> 51.30 | I119: =I115+I118 -> 359.90
B120: ОБЕД
A121: Помидоры свежие порционно | C121: 30 | F121: 0.33 | G121: 0.06 | H121: 1.14 | I121: 7.20 | J121: стр563,сб1996
B122: Помидоры свежие | D122: 30.60 | E122: 30.00
A123: Суп из овощей с курицей, со сметаной | C123: 150/10/5 | F123: 2.70 | G123: 6.30 | H123: 6.50 | I123: 93.00 | J123: №64 "Партнер"2014
B124: цыплята | D124: 22.57 | E124: 14.67
B125: Капуста свежая | D125: 15.00 | E125: 12.00
B126: Картофель | D126: 39.90 | E126: 30.00
B127: Морковь | D127: 7.50 | E127: 6.00
B128: Лук репчатый | D128: 7.14 | E128: 6.00
B129: Масло растительное | D129: 2.00 | E129: 2.00
B130: Соль | D130: 0.50 | E130: 0.50
B131: Бульон или вода | D131: 114.00 | E131: 114.00
B132: Сметана | D132: 5.00 | E132: 5.00
A133: Биточки рубленые из рыбы | C133: 50 | F133: 6.50 | G133: 4.86 | H133: 10.41 | I133: 111.40 | J133: ТТК №3 Д
B134: рыба | D134: 49.34 | E134: 37.50
B135: Яйцо | D135: 7.50 | E135: 7.50
B136: крупа манная | D136: 1.25 | E136: 1.25
B137: Лук репчатый | D137: 11.00 | E137: 9.25
B138: вода | D138: 3.75 | E138: 3.75
B139: Соль | D139: 0.33 | E139: 0.33
B140: сухари панировочные | D140: 3.75 | E140: 3.75
B141: Масло растительное | D141: 1.25 | E141: 1.25
B142: Сахар | D142: 0.14 | E142: 0.14
B143: Масса полуфабриката | E143: 60.00
A144: Пюре Картофельное | C144: 110 | F144: 2.20 | G144: 3.30 | H144: 15.40 | I144: 100.10 | J144: №137 Партнер 2014
B145: Картофель | D145: 125.59 | E145: 94.43
B146: Молоко | D146: 17.38 | E146: 16.50
B147: Масло сливочное | D147: 3.00 | E147: 3.00
B148: Соль | D148: 0.90 | E148: 0.90
A149: Компот из свежих яблок | C149: 150 | F149: 0.10 | G149: 0.10 | H149: 10.20 | I149: 42.10 | J149: № 390 Дели 2016
B150: Яблоки | D150: 34 | E150: 30
B151: Сахар | D151: 4 | E151: 4
B152: Вода | D152: 130 | E152: 130
A153: Хлеб пшеничный 1с | C153: 20 | D153: 20 | E153: 20 | F153: 1.6 | G153: 0.2 | H153: 9.8 | I153: 47
A154: Хлеб сельский | C154: 30 | D154: 30 | E154: 30 | F154: 1.5 | G154: 0.3 | H154: 14.3 | I154: 66
A155: Итого: | C155: 550.00 | F155: =SUM(F121:F154) -> 14.93 | G155: =SUM(G121:G154) -> 15.12 | H155: =SUM(H121:H154) -> 67.75 | I155: =SUM(I121:I154) -> 466.80
B156: ПОЛДНИК
A157: Кондитерские изделия | C157: 15 | F157: 1.20 | G157: 4.20 | H157: 23.10 | I157: 134.80
A158: печенье КП | D158: 15.00 | E158: 15.00
A159: Молоко кипяченое | C159: 110 | F159: 2.50 | G159: 2.75 | H159: 4.00 | I159: 51.00 | J159: №419 Дели2016
B160: молоко | D160: 115.90 | E160: 110.00
A161: Запеканка творожная с молоком сгущенным | C161: 100/10 | F161: 5.00 | G161: 6.50 | H161: 17.30 | I161: 148.00 | J161: №237 Дели2010
B162: Творог | D162: 93.30 | E162: 92.00
B163: Крупа манная | D163: 6.00 | E163: 6.00
B164: Яйцо | D164: 4.00 | E164: 4.00
B165: Сахар | D165: 8.00 | E165: 8.00
B166: Сметана | D166: 4.00 | E166: 4.00
B167: Масло сливочное | D167: 4.00 | E167: 4.00
B168: Сухари панировочные | D168: 4.00 | E168: 4.00
B169: Соль | D169: 0.40 | E169: 0.40
B170: молоко сгущенное | D170: 10.00 | E170: 10.00
A171: Чай с сахаром и лимоном | C171: 150/4/4 | F171: 0.09 | G171: 0.01 | H171: 8.50 | I171: 34.50 | J171: №393Дели2010
B172: Заварка | D172: 0.3 | E172: 0.3
B173: Сахар | D173: 4 | E173: 4
B174: лимон | D174: 4.1 | E174: 4
B175: Вода | D175: 150.0 | E175: 150.0
A176: Итого: | C176: 393 | F176: =SUM(F157:F175) -> 8.79 | G176: =SUM(G157:G175) -> 13.46 | H176: 52.90 | I176: 368.30
A177: ВСЕГО: | C177: =C115+C118+C155+C176 -> 1393.00 | F177: =F115+F118+F155+F176 -> 34.12 | G177: =G115+G118+G155+G176 -> 40.91 | H177: =H115+H118+H155+H176 -> 171.95 | I177: =I115+I118+I155+I176 -> 1195.00
A179: День 3 - ий
A180: Прием пищи | C180: Выход блюда | D180: Кол - во | E180: Кол - во | F180: Пищевые вещества (г) | I180: Энергетическая | J180: № рецептуры
A181: Наименование блюд | D181: (в гр ) | E181: (в гр ) | I181: ценность
D182: брутто | E182: нетто | F182: белки | G182: жиры | H182: угл-ды | I182: Ккал
B183: ЗАВТРАК
A184: Каша геркулесовая молочная с маслом | C184: 150/5 | F184: 5.00 | G184: 5.50 | H184: 14.00 | I184: 126.00 | J184: ТТК №5
B185: Крупа геркулесовая | D185: 19 | E185: 19
B186: Молоко | D186: 75.00 | E186: 75.00
B187: Сахар | D187: 2.00 | E187: 2.00
B188: Вода | D188: 57.00 | E188: 57.00
B189: Соль | D189: 0.8 | E189: 0.8
B190: Масло сливочное | D190: 5 | E190: 5
A191: Чай с молоком,сахаром | C191: 160/4 | F191: 2.30 | G191: 2.00 | H191: 11.90 | I191: 74.80 | J191: №394Дели2010
B192: Заварка | D192: 0.2 | E192: 0.2
B193: Сахар | D193: 4 | E193: 4
B194: Молоко | D194: 42 | E194: 42
B195: Вода | D195: 115 | E195: 115
A196: Бутерброд с маслом сливочным | C196: 25/5 | F196: 1.9 | G196: 4.4 | H196: 13 | I196: 99 | J196: №1 Дели2010
B197: Батон нарезной | D197: 25 | E197: 25
B198: Масло сливочное | D198: 5 | E198: 5
A199: Итого: | C199: 350 | F199: =SUM(F183:F198) -> 9.20 | G199: =SUM(G183:G198) -> 11.90 | H199: =SUM(H183:H198) -> 38.90 | I199: =SUM(I183:I198) -> 299.80
A200: Сок | C200: 125 | D200: 125 | E200: 125 | F200: 0.80 | G200: 0.20 | H200: 12.00 | I200: 53.00 | J200: 399Дели2010
A201: персиковый
A202: Итого: | C202: =SUM(C200:C200) -> 125 | F202: =SUM(F200) -> 0.80 | G202: =SUM(G200) -> 0.20 | H202: =SUM(H200) -> 12.00 | I202: =SUM(I200) -> 53.00
C203: 475 | F203: =F199+F202 -> 10.00 | G203: =G199+G202 -> 12.10 | H203: =H199+H202 -> 50.90 | I203: =I199+I202 -> 352.80
... 675 more rows

Sheet меню1-3 лет ПОСЛед
A1: "Согласовано" | E1: "Утверждаю"
A2: ________________________ | E2: Заместитель генерального директора по организации питания АО "Департамент продовольствия и социального питания г. Казани"
A3: __________________________ | E3: __________________А.К. Агапова
E4: Сентябрь 2024г
C5: Примерное 10-дневное меню
C6: для организации питания детей в дошкольных образовательных учреждениях
C7: от 1-3 лет с 7-10,5 часовым пребыванием
A9: День 1 - ый
A10: Прием пищи | C10: Выход блюда | D10: Пищевые вещества (г) | G10: Энергетическая | H10: № рецептуры
A11: Наименование блюд | G11: ценность
D12: белки | E12: жиры | F12: угл-ды | G12: Ккал
B13: ЗАВТРАК
A14: Каша манная молочная с маслом | C14: 150/5 | D14: 7.50 | E14: 7.50 | F14: 18.40 | G14: 171.10 | H14: ТТК №4
A15: Чай с сахаром | C15: 160/4 | D15: 0.05 | E15: 0.01 | F15: 4.42 | G15: 18.00 | H15: № 411 Дели2016
A16: Бутерброд с маслом сливочным | C16: 25/5 | D16: 1.9 | E16: 4.4 | F16: 13 | G16: 99 | H16: №1 Дели2010
A17: Итого: | C17: 350 | D17: =SUM(D13:D16) -> 9.45 | E17: =SUM(E13:E16) -> 11.91 | F17: =SUM(F13:F16) -> 35.82 | G17: =SUM(G13:G16) -> 288.10
A18: Сок | C18: 125 | D18: 0.60 | E18: 0.30 | F18: 13.00 | G18: 57.00 | H18: №399Дели2010
A19: персиковый
A20: Итого: | C20: 125 | D20: =SUM(D18) -> 0.60 | E20: =SUM(E18) -> 0.30 | F20: =SUM(F18) -> 13.00 | G20: =SUM(G18) -> 57.00
C21: 474 | D21: =D17+D20 -> 10.05 | E21: =E17+E20 -> 12.21 | F21: =F17+F20 -> 48.82 | G21: =G17+G20 -> 345.10
B22: ОБЕД
A23: Салат из свежей капусты | C23: 30 | D23: 0.42 | E23: 1.50 | F23: 2.70 | G23: 26.00 | H23: №21, Дели 2016
A24: Суп вермишелевый с картофелем и курицей | C24: 150/10 | D24: 3.00 | E24: 4.30 | F24: 11.30 | G24: 96.00 | H24: №88 Дели 2016
A25: Тефтели из говядины | C25: 50 | D25: 4.4 | E25: 4.6 | F25: 3.5 | G25: 73 | H25: ТТК № 1152 от 09.10.2020 и №364 С-Петербург 2008
A26: Рис отварной с овощами | C26: 110 | D26: 5.5 | E26: 4.55 | F26: 32.67 | G26: 193.6 | H26: №334 Дели2016
A27: Кисель | C27: 150 | F27: 8.34 | G27: 33.34 | H27: №284Партнер2014
A28: Хлеб пшеничный 1с | C28: 20 | D28: 1.6 | E28: 0.2 | F28: 9.8 | G28: 47
A29: Хлеб сельский | C29: 30 | D29: 1.5 | E29: 0.3 | F29: 14.3 | G29: 66
A30: Итого: | C30: 555.00 | D30: =SUM(D25:D29) -> 13.00 | E30: =SUM(E25:E29) -> 9.65 | F30: =SUM(F25:F29) -> 68.61 | G30: =SUM(G25:G29) -> 412.94
B31: ПОЛДНИК
A32: Фрукты свежие | C32: 100 | D32: 0.40 | E32: 0.40 | F32: 10.00 | G32: 45.20 | H32: №386Дели2016
A33: яблоко
A34: Катык | C34: 110 | D34: 3.00 | E34: 2.70 | F34: 4.50 | G34: 54.30 | H34: №401Дели2010
A35: Булочка Домашняя | C35: 40 | D35: 3.90 | E35: 3.50 | F35: 22.40 | G35: 137.00 | H35: №258 Партнер г. Уфа 2014
A36: Напиток шиповника | C36: 150/4 | D36: 0.5 | E36: 0.25 | F36: 5.4 | G36: 25.9 | H36: ТТК № 59
A37: Итого: | C37: 404.00 | D37: =SUM(D31:D36) -> 7.80 | E37: =SUM(E31:E36) -> 6.85 | F37: =SUM(F31:F36) -> 42.30 | G37: =SUM(G31:G36) -> 262.40
A38: ВСЕГО: | C38: =C17+C20+C30+C37 -> 1434.00 | D38: =D17+D20+D30+D37 -> 30.85 | E38: =E17+E20+E30+E37 -> 28.71 | F38: =F17+F20+F30+F37 -> 159.73 | G38: =G17+G20+G30+G37 -> 1020.44
A40: День 2- ой
A41: Прием пищи | C41: Выход блюда | D41: Пищевые вещества (г) | G41: Энергетическая | H41: № рецептуры
A42: Наименование блюд | G42: ценность
D43: белки | E43: жиры | F43: угл-ды | G43: Ккал
B44: ЗАВТРАК
A45: Каша "Дружба" молочная с маслом | C45: 150/5 | D45: 3.90 | E45: 4.38 | F45: 19.00 | G45: 131.00 | H45: ТТК №7
A46: Какао с молоком | C46: 160 | D46: 2.00 | E46: 2.20 | F46: 11.30 | G46: 73.30 | H46: №272 Парнер г. Уфа 2014
A47: Бутерброд с сыром, маслом | C47: 25/5/3 | D47: 3.50 | E47: 5.95 | F47: 12.90 | G47: 119.60 | H47: №3Дели2010
A48: Итого: | C48: 350 | D48: =SUM(D44:D47) -> 9.40 | E48: 12.33 | F48: =SUM(F44:F47) -> 43.20 | G48: =SUM(G44:G47) -> 323.90
A49: Фрукты свежие | C49: 100 | D49: 1.00 | E49: 0.00 | F49: 8.10 | G49: 36.00 | H49: № 368 Дели 2010
A50: апельсин
A51: Итого: | C51: 100 | D51: =SUM(D49) -> 1.00 | E51: =SUM(E49) -> 0.00 | F51: =SUM(F49) -> 8.10 | G51: =SUM(G49) -> 36.00
C52: 450 | D52: =D48+D51 -> 10.40 | E52: =E48+E51 -> 12.33 | F52: =F48+F51 -> 51.30 | G52: =G48+G51 -> 359.90
B53: ОБЕД
A54: Помидоры свежие порционно | C54: 30 | D54: 0.33 | E54: 0.06 | F54: 1.14 | G54: 7.20 | H54: стр563,сб1996
A55: Суп из овощей с курицей, со сметаной | C55: 150/10/5 | D55: 2.70 | E55: 6.30 | F55: 6.50 | G55: 93.00 | H55: №64 "Партнер"2014
A56: Биточки рубленые из рыбы | C56: 50 | D56: 6.50 | E56: 4.86 | F56: 10.41 | G56: 111.40 | H56: ТТК №3 Д
A57: Пюре Картофельное | C57: 110 | D57: 2.20 | E57: 3.30 | F57: 15.40 | G57: 100.10 | H57: №137 Партнер 2014
A58: Компот из свежих яблок | C58: 150 | D58: 0.10 | E58: 0.10 | F58: 10.20 | G58: 42.10 | H58: № 390 Дели 2016
A59: Хлеб пшеничный 1с | C59: 20 | D59: 1.6 | E59: 0.2 | F59: 9.8 | G59: 47
A60: Хлеб сельский | C60: 30 | D60: 1.5 | E60: 0.3 | F60: 14.3 | G60: 66
A61: Итого: | C61: 550.00 | D61: =SUM(D54:D60) -> 14.93 | E61: =SUM(E54:E60) -> 15.12 | F61: =SUM(F54:F60) -> 67.75 | G61: =SUM(G54:G60) -> 466.80
B62: ПОЛДНИК
A63: Кондитерские изделия | C63: 15 | D63: 1.20 | E63: 4.20 | F63: 23.10 | G63: 134.80
A64: печенье КП
A65: Молоко кипяченое | C65: 110 | D65: 2.50 | E65: 2.75 | F65: 4.00 | G65: 51.00 | H65: №419 Дели2016
A66: Запеканка творожная с молоком сгущенным | C66: 100/10 | D66: 5.00 | E66: 6.50 | F66: 17.30 | G66: 148.00 | H66: №237 Дели2010
A67: Чай с сахаром и лимоном | C67: 150/4/4 | D67: 0.09 | E67: 0.01 | F67: 8.50 | G67: 34.50 | H67: №393Дели2010
A68: Итого: | C68: 393 | D68: =SUM(D63:D67) -> 8.79 | E68: =SUM(E63:E67) -> 13.46 | F68: =SUM(F63:F67) -> 52.90 | G68: =SUM(G63:G67) -> 368.30
A69: ВСЕГО: | C69: =C48+C51+C61+C68 -> 1393.00 | D69: =D48+D51+D61+D68 -> 34.12 | E69: =E48+E51+E61+E68 -> 40.91 | F69: =F48+F51+F61+F68 -> 171.95 | G69: =G48+G51+G61+G68 -> 1195.00
A71: День 3 - ий
A72: Прием пищи | C72: Выход блюда | D72: Пищевые вещества (г) | G72: Энергетическая | H72: № рецептуры
A73: Наименование блюд | G73: ценность
D74: белки | E74: жиры | F74: угл-ды | G74: Ккал
B75: ЗАВТРАК
A76: Каша геркулесовая молочная с маслом | C76: 150/5 | D76: 5.00 | E76: 5.50 | F76: 14.00 | G76: 126.00 | H76: ТТК №5
A77: Чай с молоком,сахаром | C77: 160/4 | D77: 2.30 | E77: 2.00 | F77: 11.90 | G77: 74.80 | H77: №394Дели2010
A78: Бутерброд с маслом сливочным | C78: 25/5 | D78: 1.9 | E78: 4.4 | F78: 13 | G78: 99 | H78: №1 Дели2010
A79: Итого: | C79: 350 | D79: =SUM(D75:D78) -> 9.20 | E79: =SUM(E75:E78) -> 11.90 | F79: =SUM(F75:F78) -> 38.90 | G79: =SUM(G75:G78) -> 299.80
A80: Сок | C80: 125 | D80: 0.80 | E80: 0.20 | F80: 12.00 | G80: 53.00 | H80: 399Дели2010
A81: персиковый
A82: Итого: | C82: =SUM(C80:C80) -> 125 | D82: =SUM(D80) -> 0.80 | E82: =SUM(E80) -> 0.20 | F82: =SUM(F80) -> 12.00 | G82: =SUM(G80) -> 53.00
C83: 475 | D83: =D79+D82 -> 10.00 | E83: =E79+E82 -> 12.10 | F83: =F79+F82 -> 50.90 | G83: =G79+G82 -> 352.80
B84: ОБЕД
A85: Огурцы свежие порционно | C85: 30 | D85: 0.21 | E85: 0.03 | F85: 0.57 | G85: 3.39 | H85: стр563,сб1996
A86: Суп с гречневой крупой и картофелем с мясными фрикадельками | C86: 150/10 | D86: 2.90 | E86: 6.40 | F86: 10.27 | G86: 110.30 | H86: №86 Дели 2016
A87: Голубцы ленивые в соусе сметанно-томатн. | C87: 140/15 | D87: 9.20 | E87: 12.30 | F87: 32.60 | G87: 277.00 | H87: №160,сб Пермь2001
A88: Напиток из урюка | C88: 150 | D88: 0.50 | E88: 0.03 | F88: 12.50 | G88: 52.10 | H88: ТТК №68
A89: Хлеб пшеничный 1с | C89: 20 | D89: 1.6 | E89: 0.2 | F89: 9.8 | G89: 47
A90: Хлеб сельский | C90: 30 | D90: 1.5 | E90: 0.3 | F90: 14.3 | G90: 66
A91: Итого: | C91: 525 | D91: =SUM(D85:D90) -> 15.91 | E91: =SUM(E85:E90) -> 19.26 | F91: =SUM(F85:F90) -> 80.04 | G91: =SUM(G85:G90) -> 555.79
B92: ПОЛДНИК
A93: Фрукты свежие | C93: 100 | D93: 0.36 | E93: 0.36 | F93: 22.00 | G93: 92.68 | H93: № 386 Дели 2016
A94: яблоко
A95: Ряженка | C95: 110 | D95: 3.12 | E95: 2.75 | F95: 4.59 | G95: 55.60 | H95: №401Дели2010
A96: Ватрушка с повидлом | C96: 40 | D96: 0.6 | E96: 2.50 | F96: 28.00 | G96: 136 | H96: №441 Дели 2016
A97: Яйцо вареное | C97: 1/2шт | D97: 2.50 | E97: 2.30 | F97: 0.15 | G97: 31.50 | H97: №227 Дели 2016
A98: Чай с сахаром | C98: 160/4 | D98: 0.05 | E98: 0.01 | F98: 4.42 | G98: 18.00 | H98: № 411 Дели2016
A99: Итого: | C99: 438 | D99: =SUM(D93:D98) -> 6.63 | E99: =SUM(E93:E98) -> 7.92 | F99: =SUM(F93:F98) -> 59.16 | G99: =SUM(G93:G98) -> 333.78
A100: ВСЕГО: | C100: =C79+C82+C91+C99 -> 1438 | D100: =D79+D82+D91+D99 -> 32.54 | E100: =E79+E82+E91+E99 -> 39.28 | F100: =F79+F82+F91+F99 -> 190.10 | G100: =G79+G82+G91+G99 -> 1242.37
A102: День 4 - ый
A103: Прием пищи | C103: Выход блюда | D103: Пищевые вещества (г) | G103: Энергетическая | H103: № рецептуры
A104: Наименование блюд | G104: ценность
D105: белки | E105: жиры | F105: угл-ды | G105: Ккал
B106: ЗАВТРАК
A107: Каша пшённая молочная с маслом | C107: 150/5 | D107: 5.80 | E107: 4.50 | F107: 16.20 | G107: 128.00 | H107: ТТК №6
A108: Кофейный напиток с молоком | C108: 165/7 | D108: 1 | E108: 1.2 | F108: 10 | G108: 55 | H108: №270 Партнер г. Уфа 2014
A109: Бутерброд с сыром, маслом | C109: 25/5/3 | D109: 3.50 | E109: 5.95 | F109: 12.90 | G109: 119.60 | H109: №3Дели2010
A110: Итого: | C110: 360 | D110: =SUM(D106:D109) -> 10.30 | E110: =SUM(E106:E109) -> 11.65 | F110: =SUM(F106:F109) -> 39.10 | G110: =SUM(G106:G109) -> 302.60
A111: Фрукты свежие | C111: 100 | D111: 0.60 | E111: 0.43 | F111: 14.00 | G111: 62.30 | H111: № 368 Дели 2010
A112: груша
A113: Итого: | C113: 100 | D113: =SUM(D111) -> 0.60 | E113: =SUM(E111) -> 0.43 | F113: =SUM(F111) -> 14.00 | G113: =SUM(G111) -> 62.30
C114: 460 | D114: =D110+D113 -> 10.90 | E114: =E110+E113 -> 12.08 | F114: =F110+F113 -> 53.10 | G114: =G110+G113 -> 364.90
B115: ОБЕД
A116: Помидоры свежие порционно | C116: 30 | D116: 0.33 | E116: 0.06 | F116: 1.14 | G116: 7.20 | H116: стр563,сб1996
A117: Щи со свежей капустой, картофелем, на м/б и сметаной | C117: 150/5 | D117: 3.00 | E117: 6.20 | F117: 13.00 | G117: 120.00 | H117: №73 Дели 2016
A118: Жаркое по-домашнему из отварной говядины | C118: 130 | D118: 9.3 | E118: 8.5 | F118: 31 | G118: 238 | H118: ТТК №29 Д
A119: Кисель | C119: 150 | F119: 8.34 | G119: 33.34 | H119: №284Партнер2014
A120: Хлеб пшеничный 1с | C120: 20 | D120: 1.6 | E120: 0.2 | F120: 9.8 | G120: 47
A121: Хлеб сельский | C121: 30 | D121: 1.5 | E121: 0.3 | F121: 14.3 | G121: 66
A122: Итого: | C122: 515 | D122: =SUM(D116:D121) -> 15.73 | E122: =SUM(E116:E121) -> 15.26 | F122: =SUM(F116:F121) -> 77.58 | G122: =SUM(G116:G121) -> 511.54
B123: ПОЛДНИК
A124: Кондитерские изделия | C124: 21 | D124: 2.70 | E124: 4.30 | F124: 22.50 | G124: 137.00
A125: вафли
A126: Катык | C126: 110 | D126: 3.00 | E126: 2.70 | F126: 4.50 | G126: 54.30 | H126: №401Дели2010
A127: Суфле из творога с молоком сгущенным | C127: 100/10 | D127: 5.40 | E127: 6.20 | F127: 17.70 | G127: 148.00 | H127: ТТК №567
A128: Напиток шиповника | C128: 150/4 | D128: 0.5 | E128: 0.25 | F128: 5.4 | G128: 25.9 | H128: ТТК № 59
A129: Итого: | C129: 395 | D129: =SUM(D124:D128) -> 11.60 | E129: =SUM(E124:E128) -> 13.45 | F129: =SUM(F124:F128) -> 50.10 | G129: =SUM(G124:G128) -> 365.20
A130: ВСЕГО: | C130: =C110+C113+C122+C129 -> 1370 | D130: =D110+D113+D122+D129 -> 38.23 | E130: =E110+E113+E122+E129 -> 40.79 | F130: =F110+F113+F122+F129 -> 180.78 | G130: =G110+G113+G122+G129 -> 1241.64
A132: День 5 - ый
A133: Прием пищи | C133: Выход блюда | D133: Пищевые вещества (г) | G133: Энергетическая | H133: № рецептуры
A134: Наименование блюд | G134: ценность
D135: белки | E135: жиры | F135: угл-ды | G135: Ккал
B136: ЗАВТРАК
A137: Каша полбяная молочная с маслом | C137: 150/5 | D137: 6 | E137: 5 | F137: 17.23 | G137: 138 | H137: ТТК №1
A138: Какао с молоком | C138: 160 | D138: 2.00 | E138: 2.20 | F138: 11.30 | G138: 73.30 | H138: №272 Парнер г. Уфа 2014
A139: Бутерброд с маслом сливочным | C139: 25/5 | D139: 1.9 | E139: 4.4 | F139: 13 | G139: 99 | H139: №1 Дели2010
A140: Итого: | C140: 350 | D140: =SUM(D136:D139) -> 9.90 | E140: =SUM(E136:E139) -> 11.60 | F140: =SUM(F136:F139) -> 41.53 | G140: =SUM(G136:G139) -> 310.30
A141: Сок | C141: 125 | D141: 0.30 | E141: 0.00 | F141: 10.00 | G141: 40.00 | H141: №399Дели2010
A142: вишневый
A143: Итого: | C143: 125 | D143: =SUM(D141) -> 0.30 | E143: =SUM(E141) -> 0.00 | F143: =SUM(F141) -> 10.00 | G143: =SUM(G141) -> 40.00
C144: 470 | D144: =D140+D143 -> 10.20 | E144: =E140+E143 -> 11.60 | F144: =F140+F143 -> 51.53 | G144: =G140+G143 -> 350.30
B145: ОБЕД
A146: Салат из свежих помидоров и огурцов | C146: 30 | D146: 0.30 | E146: 2.00 | F146: 1.20 | G146: 24.00 | H146: № 15 Дели 2016
A147: Свекольник с курицей, со сметаной | C147: 150/10/5 | D147: 3.12 | E147: 4.20 | F147: 11.60 | G147: 97.00 | H147: №35,сб.Пермь2001
A148: Плов из курицы | C148: 130 | D148: 9 | E148: 10.7 | F148: 30.6 | G148: 253 | H148: №321 Дели 2016
A149: Компот из свежих яблок | C149: 150 | D149: 0.10 | E149: 0.10 | F149: 10.20 | G149: 42.10 | H149: № 390 Дели 2016
A150: Хлеб сельский | C150: 30 | D150: 1.5 | E150: 0.3 | F150: 14.3 | G150: 66
A151: Итого: | C151: 505 | D151: =SUM(D146:D150) -> 14.02 | E151: =SUM(E146:E150) -> 17.30 | F151: =SUM(F146:F150) -> 67.90 | G151: =SUM(G146:G150) -> 482.10
B152: ПОЛДНИК
A153: Плюшка новомосковская | C153: 40 | D153: 1.80 | E153: 3.20 | F153: 19.00 | G153: 112.00 | H153: №184 "Партнер"г. Уфа2010
A154: Кефир | C154: 110 | D154: 3.1 | E154: 2.75 | F154: 4.4 | G154: 54.8 | H154: №401Дели2010
A155: Чай с сахаром | C155: 160/4 | D155: 0.05 | E155: 0.01 | F155: 4.42 | G155: 18.00 | H155: № 411 Дели2016
A156: Хлеб пшеничный 1с | C156: 20 | D156: 1.6 | E156: 0.2 | F156: 9.8 | G156: 47
A157: Итого: | C157: 334 | D157: =SUM(D153:D156) -> 6.55 | E157: =SUM(E153:E156) -> 6.16 | F157: =SUM(F153:F156) -> 37.62 | G157: =SUM(G153:G156) -> 231.80
A158: ВСЕГО: | C158: =C140+C143+C151+C157 -> 1314 | D158: =D140+D143+D151+D157 -> 30.77 | E158: =E140+E143+E151+E157 -> 35.06 | F158: =F140+F143+F151+F157 -> 157.05 | G158: =G140+G143+G151+G157 -> 1064.20
C160: 2 НЕДЕЛЯ
A161: День 6 - ой
A162: Прием пищи | C162: Выход блюда | D162: Пищевые вещества (г) | G162: Энергетическая | H162: № рецептуры
A163: Наименование блюд | G163: ценность
D164: белки | E164: жиры | F164: угл-ды | G164: Ккал
B165: ЗАВТРАК
A166: Каша геркулесовая молочная с маслом | C166: 150/5 | D166: 4.80 | E166: 5.00 | F166: 14.00 | G166: 120.00 | H166: ТТК №5
A167: Чай с молоком,сахаром | C167: 160/4 | D167: 2.30 | E167: 2.00 | F167: 11.90 | G167: 74.80 | H167: №394Дели2010
A168: Бутерброд с сыром, маслом | C168: 25/5/3 | D168: 3.50 | E168: 5.95 | F168: 12.90 | G168: 119.60 | H168: №3Дели2010
A169: Итого: | C169: 352 | D169: =SUM(D165:D168) -> 10.60 | E169: =SUM(E165:E168) -> 12.95 | F169: =SUM(F165:F168) -> 38.80 | G169: =SUM(G165:G168) -> 314.40
A170: Фрукты свежие | C170: 100 | D170: 0.36 | E170: 0.10 | F170: 10.00 | G170: 40.00 | H170: №386Дели2016
A171: яблоко
A172: Итого: | C172: =SUM(C170:C170) -> 100 | D172: =SUM(D170) -> 0.36 | E172: =SUM(E170) -> 0.10 | F172: =SUM(F170) -> 10.00 | G172: =SUM(G170) -> 40.00
C173: 452 | D173: =D169+D172 -> 10.96 | E173: 12.30 | F173: =F169+F172 -> 48.80 | G173: =G169+G172 -> 354.40
B174: ОБЕД
A175: Салат из свежей капусты | C175: 30 | D175: 0.42 | E175: 1.50 | F175: 2.70 | G175: 26.00 | H175: №21, Дели 2016
A176: Рассольник ленинградский с курицей, со сметаной | C176: 150/10/5 | D176: 2.6 | E176: 3.4 | F176: 13.2 | G176: 94 | H176: №82 Дели 2016
A177: Биточки куриные "Солнышко" | C177: 50 | D177: 6.40 | E177: 9.00 | F177: 5.20 | G177: 127.00 | H177: ТТК №97Д
A178: Макароны отварные | C178: 110 | D178: 4.10 | E178: 3.00 | F178: 25.00 | G178: 143.40 | H178: №218 Дели 2016
A179: Кисель | C179: 150 | F179: 8.34 | G179: 33.34 | H179: №284Партнер2014
A180: Хлеб пшеничный 1с | C180: 20 | D180: 1.6 | E180: 0.2 | F180: 9.8 | G180: 47
A181: Хлеб сельский | C181: 30 | D181: 1.5 | E181: 0.3 | F181: 14.3 | G181: 66
A182: Итого: | C182: 555 | D182: =SUM(D175:D181) -> 16.62 | E182: =SUM(E175:E181) -> 17.40 | F182: 78.54 | G182: 536.74
B183: ПОЛДНИК
A184: Фрукты свежие | C184: 100 | D184: 0.40 | E184: 0.40 | F184: 10.00 | G184: 45.20 | H184: №386Дели2016
A185: яблоко
A186: Ряженка | C186: 110 | D186: 3.12 | E186: 2.75 | F186: 4.59 | G186: 55.60 | H186: №401Дели2010
A187: Булочка сдобная | C187: 40 | D187: 2 | E187: 4 | F187: 16 | G187: 108 | H187: Партнер2014 г. Уфа
A188: Чай фруктовый | C188: 150/6 | D188: 0.1 | E188: 0.07 | F188: 13.5 | G188: 55 | H188: ТТК №56
A189: Итого: | C189: 406 | D189: =SUM(D184:D188) -> 5.62 | E189: =SUM(E184:E188) -> 7.22 | F189: =SUM(F184:F188) -> 44.09 | G189: =SUM(G184:G188) -> 263.80
A190: ВСЕГО: | C190: =C169+C182+C189 -> 1313 | D190: =D169+D172+D182+D189 -> 33.20 | E190: =E169+E172+E182+E189 -> 37.67 | F190: =F169+F172+F182+F189 -> 171.43 | G190: =G169+G172+G182+G189 -> 1154.94
A192: День 7 - ой
A193: Прием пищи | C193: Выход блюда | D193: Пищевые вещества (г) | G193: Энергетическая | H193: № рецептуры
A194: Наименование блюд | G194: ценность
D195: белки | E195: жиры | F195: угл-ды | G195: Ккал
B196: ЗАВТРАК
A197: Каша рисовая молочная с маслом | C197: 150/5 | D197: 5.30 | E197: 4.80 | F197: 12.10 | G197: 112.00 | H197: ТТК №8
A198: Кофейный напиток с молоком | C198: 165/7 | D198: 1 | E198: 1.2 | F198: 10 | G198: 55 | H198: №270 Партнер г. Уфа 2014
A199: Бутерброд с маслом сливочным | C199: 25/5 | D199: 1.9 | E199: 4.4 | F199: 13 | G199: 99 | H199: №1 Дели2010
A200: Итого: | C200: 357 | D200: =SUM(D196:D199) -> 8.20 | E200: =SUM(E196:E199) -> 10.40 | F200: =SUM(F196:F199) -> 35.10 | G200: =SUM(G196:G199) -> 266.00
A201: Сок | C201: 125 | D201: 1.90 | E201: 1.00 | F201: 15.00 | G201: 77.00 | H201: № 368 Дели 2010
A202: яблочный
A203: Итого: | C203: 125 | D203: =SUM(D201:D202) -> 1.90 | E203: =SUM(E201:E202) -> 1.00 | F203: =SUM(F201:F202) -> 15.00 | G203: =SUM(G201:G202) -> 77.00
C204: 482 | D204: =D200+D203 -> 10.10 | E204: 11.70 | F204: =F200+F203 -> 50.10 | G204: =G200+G203 -> 343.00
B205: ОБЕД
A206: Помидоры свежие порционно | C206: 30 | D206: 0.33 | E206: 0.06 | F206: 1.14 | G206: 7.20 | H206: стр563,сб1996
A207: Суп картофельный с горохом с мясными фрикадельками и гренками | C207: 150/10/10 | D207: 2.00 | E207: 3.00 | F207: 13.60 | G207: 89.00 | H207: ТТК№139
... 130 more rows

Sheet свод 3-7
B1: Расход продуктов ДОУ
D2: от 3 до 7 лет | K2: нетто
A3: Наименов. прод. | B3: 1 | C3: 2 | D3: 3 | E3: 4 | F3: 5 | G3: 6 | H3: 7 | I3: 8 | J3: 9 | K3: 10 | L3: Кол-во | M3: Среднее
A5: Сахар | B5: 26.00 | C5: 31.20 | D5: 17.60 | E5: 30.40 | F5: 23.30 | G5: 24.80 | H5: 28.00 | I5: 21.60 | J5: 31.00 | K5: 20.83 | L5: 254.73 | M5: 25.47
A6: Заварка | B6: 0.30 | C6: 0.35 | D6: 0.75 | E6: 0.00 | F6: 0.30 | G6: 0.30 | H6: 0.35 | I6: 0.45 | J6: 0.30 | K6: 0.30 | L6: 3.40 | M6: 0.34
A7: Яйцо | B7: 1.00 | C7: 16.50 | D7: 58.90 | E7: 7.14 | F7: 1.08 | G7: 7.00 | H7: 9.30 | I7: 2.50 | J7: 15.50 | K7: 106.40 | L7: 225.32 | M7: 22.53
A8: Дрожжи сухие | B8: 0.20 | C8: 0.00 | D8: 0.20 | E8: 0.00 | F8: 0.25 | G8: 0.38 | H8: 0.00 | I8: 0.20 | J8: 0.00 | K8: 0.20 | L8: 1.43 | M8: 0.14
A9: Батон нарезной | B9: 30.00 | C9: 30.00 | D9: 30.00 | E9: 30.00 | F9: 30.00 | G9: 30.00 | H9: 30.00 | I9: 30.00 | J9: 30.00 | K9: 30.00 | L9: 300.00 | M9: 30.00
A10: Хлеб пшеничный 1с | B10: 29.00 | C10: 23.00 | D10: 23.00 | E10: 23.00 | F10: 23.00 | G10: 23.00 | H10: 42.00 | I10: 23.00 | J10: 32.00 | K10: 23.00 | L10: 264.00 | M10: 26.40
A11: Хлеб сельский | B11: 37.50 | C11: 37.50 | D11: 37.50 | E11: 37.50 | F11: 37.50 | G11: 37.50 | H11: 37.50 | I11: 37.50 | J11: 37.50 | K11: 37.50 | L11: 375.00 | M11: 37.50
A12: Мука пшеничная | B12: 34.40 | C12: 0.00 | D12: 28.80 | E12: 0.00 | F12: 35.00 | G12: 30.00 | H12: 5.95 | I12: 24.10 | J12: 40.50 | K12: 24.70 | L12: 223.45 | M12: 22.35
A13: Кисель-концентрат | B13: 21.60 | C13: 0.00 | D13: 0.00 | E13: 21.60 | F13: 0.00 | G13: 21.60 | H13: 0.00 | I13: 0.00 | J13: 21.60 | K13: 0.00 | L13: 86.40 | M13: 8.64
A14: Макаронные изделия | B14: 0.00 | C14: 0.00 | D14: 0.00 | E14: 0.00 | F14: 0.00 | G14: 45.50 | H14: 0.00 | I14: 0.00 | J14: 0.00 | K14: 0.00 | L14: 45.50 | M14: 4.55
A15: Вермишель | B15: 8.00 | C15: 0.00 | D15: 0.00 | E15: 0.00 | F15: 0.00 | G15: 0.00 | H15: 0.00 | I15: 14.00 | J15: 0.00 | K15: 0.00 | L15: 22.00 | M15: 2.20
A16: Крупа рисовая | B16: 37.70 | C16: 15.00 | D16: 7.00 | E16: 0.00 | F16: 38.50 | G16: 0.00 | H16: 43.00 | I16: 45.60 | J16: 12.00 | K16: 0.00 | L16: 198.80 | M16: 19.88
A17: Крупа кукурузная | B17: 0.00 | C17: 0.00 | D17: 0.00 | E17: 0.00 | F17: 0.00 | G17: 0.00 | H17: 0.00 | I17: 0.00 | J17: 0.00 | K17: 0.00 | L17: 0.00 | M17: 0.00
A18: Крупа манная | B18: 23.00 | C18: 10.75 | D18: 0.00 | E18: 11.40 | F18: 0.00 | G18: 0.00 | H18: 0.00 | I18: 0.00 | J18: 0.00 | K18: 0.00 | L18: 45.15 | M18: 4.52
A19: Горох | B19: 0.00 | C19: 0.00 | D19: 0.00 | E19: 0.00 | F19: 0.00 | G19: 0.00 | H19: 20.00 | I19: 0.00 | J19: 0.00 | K19: 0.00 | L19: 20.00 | M19: 2.00
A20: Крупа пшенная | B20: 0.00 | C20: 11.00 | D20: 0.00 | E20: 30.00 | F20: 0.00 | G20: 0.00 | H20: 0.00 | I20: 0.00 | J20: 0.00 | K20: 30.00 | L20: 71.00 | M20: 7.10
A21: Крупа ячневая | B21: 0.00 | C21: 0.00 | D21: 0.00 | E21: 0.00 | F21: 0.00 | G21: 0.00 | H21: 0.00 | I21: 0.00 | J21: 0.00 | K21: 0.00 | L21: 0.00 | M21: 0.00
A22: Полба | B22: 0.00 | C22: 0.00 | D22: 0.00 | E22: 0.00 | F22: 25.00 | G22: 0.00 | H22: 0.00 | I22: 0.00 | J22: 25.00 | K22: 0.00 | L22: 50.00 | M22: 5.00
A23: Крупа перловая | B23: 0.00 | C23: 0.00 | D23: 0.00 | E23: 0.00 | F23: 0.00 | G23: 8.00 | H23: 0.00 | I23: 0.00 | J23: 0.00 | K23: 0.00 | L23: 8.00 | M23: 0.80
A24: Крупа геркулесовая | B24: 0.00 | C24: 0.00 | D24: 25.00 | E24: 0.00 | F24: 0.00 | G24: 25.00 | H24: 0.00 | I24: 0.00 | J24: 0.00 | K24: 0.00 | L24: 50.00 | M24: 5.00
A25: Крупа пшеничная | B25: 0.00 | C25: 0.00 | D25: 0.00 | E25: 0.00 | F25: 0.00 | G25: 0.00 | H25: 0.00 | I25: 0.00 | J25: 0.00 | K25: 0.00 | L25: 0.00 | M25: 0.00
A26: Крупа гречневая | B26: 0.00 | C26: 0.00 | D26: 12.00 | E26: 0.00 | F26: 0.00 | G26: 0.00 | H26: 0.00 | I26: 0.00 | J26: 0.00 | K26: 32.50 | L26: 44.50 | M26: 4.45
A27: Картофель | B27: 60.00 | C27: 151.60 | D27: 60.00 | E27: 144.60 | F27: 34.50 | G27: 60.00 | H27: 151.60 | I27: 16.00 | J27: 171.60 | K27: 40.00 | L27: 889.90 | M27: 88.99
A28: Морковь | B28: 26.60 | C28: 8.00 | D28: 9.00 | E28: 8.00 | F28: 23.10 | G28: 30.50 | H28: 8.00 | I28: 18.40 | J28: 8.00 | K28: 12.00 | L28: 151.60 | M28: 15.16
A29: Лук репчатый | B29: 33.20 | C29: 21.00 | D29: 22.90 | E29: 23.30 | F29: 15.90 | G29: 14.00 | H29: 14.50 | I29: 16.00 | J29: 18.25 | K29: 9.00 | L29: 188.05 | M29: 18.81
A30: Свекла | B30: 0.00 | C30: 0.00 | D30: 0.00 | E30: 0.00 | F30: 51.00 | G30: 0.00 | H30: 0.00 | I30: 32.00 | J30: 0.00 | K30: 0.00 | L30: 83.00 | M30: 8.30
A31: Капуста свежая | B31: 40.50 | C31: 16.00 | D31: 96.00 | E31: 40.00 | F31: 0.00 | G31: 40.50 | H31: 0.00 | I31: 16.00 | J31: 0.00 | K31: 16.00 | L31: 265.00 | M31: 26.50
A32: Икра кабачковая | B32: 0.00 | C32: 0.00 | D32: 0.00 | E32: 0.00 | F32: 0.00 | G32: 0.00 | H32: 0.00 | I32: 0.00 | J32: 0.00 | K32: 0.00 | L32: 0.00 | M32: 0.00
A33: Огурцы соленые | B33: 0.00 | C33: 0.00 | D33: 0.00 | E33: 0.00 | F33: 0.00 | G33: 12.00 | H33: 0.00 | I33: 0.00 | J33: 0.00 | K33: 0.00 | L33: 12.00 | M33: 1.20
A34: Помидоры свежие | B34: 0.00 | C34: 50.00 | D34: 0.00 | E34: 50.00 | F34: 24.00 | G34: 0.00 | H34: 50.00 | I34: 0.00 | J34: 50.00 | K34: 24.00 | L34: 248.00 | M34: 24.80
A35: Огурцы свежие | B35: 0.00 | C35: 0.00 | D35: 50.00 | E35: 0.00 | F35: 23.50 | G35: 0.00 | H35: 0.00 | I35: 50.00 | J35: 0.00 | K35: 23.50 | L35: 147.00 | M35: 14.70
A36: перец | B36: 0.00 | C36: 0.00 | D36: 0.00 | E36: 0.00 | F36: 0.00 | G36: 0.00 | H36: 0.00 | I36: 0.00 | J36: 0.00 | K36: 0.00 | L36: 0.00 | M36: 0.00
A37: Томат-паста | B37: 1.00 | C37: 0.00 | D37: 1.00 | E37: 0.00 | F37: 1.00 | G37: 0.00 | H37: 0.00 | I37: 1.00 | J37: 0.00 | K37: 3.00 | L37: 7.00 | M37: 0.70
A38: Масло сливочное | B38: 15.00 | C38: 17.00 | D38: 16.70 | E38: 8.00 | F38: 13.00 | G38: 15.10 | H38: 21.90 | I38: 6.50 | J38: 31.00 | K38: 16.20 | L38: 160.40 | M38: 16.04
A39: Масло растительное | B39: 14.70 | C39: 5.50 | D39: 2.10 | E39: 9.60 | F39: 13.16 | G39: 8.50 | H39: 3.50 | I39: 9.20 | J39: 5.00 | K39: 14.38 | L39: 85.64 | M39: 8.56
A40: Фрукты свежие | B40: 100.00 | C40: 100.00 | D40: 100.00 | E40: 0.00 | F40: 0.00 | G40: 200.00 | H40: 0.00 | I40: 200.00 | J40: 0.00 | K40: 100.00 | L40: 800.00 | M40: 80.00
A41: Яблоки | B41: 0.00 | C41: 36.00 | D41: 0.00 | E41: 0.00 | F41: 36.00 | G41: 0.00 | H41: 36.00 | I41: 0.00 | J41: 0.00 | K41: 0.00 | L41: 108.00 | M41: 10.80
A42: крыжовник зам. | B42: 0.00 | C42: 0.00 | D42: 0.00 | E42: 0.00 | F42: 0.00 | G42: 0.00 | H42: 0.00 | I42: 0.00 | J42: 0.00 | K42: 0.00 | L42: 0.00 | M42: 0.00
A43: Лимон | B43: 0.00 | C43: 5.00 | D43: 0.00 | E43: 0.00 | F43: 0.00 | G43: 0.00 | H43: 5.00 | I43: 0.00 | J43: 0.00 | K43: 0.00 | L43: 10.00 | M43: 1.00
A44: Ягодная смесь зам. | B44: 0.00 | C44: 0.00 | D44: 0.00 | E44: 0.00 | F44: 0.00 | G44: 0.00 | H44: 0.00 | I44: 0.00 | J44: 0.00 | K44: 0.00 | L44: 0.00 | M44: 0.00
A45: Сок | B45: 125.00 | C45: 0.00 | D45: 125.00 | E45: 0.00 | F45: 125.00 | G45: 0.00 | H45: 125.00 | I45: 0.00 | J45: 125.00 | K45: 0.00 | L45: 625.00 | M45: 62.50
A46: Курага | B46: 0.00 | C46: 0.00 | D46: 0.00 | E46: 0.00 | F46: 0.00 | G46: 0.00 | H46: 0.00 | I46: 0.00 | J46: 0.00 | K46: 0.00 | L46: 0.00 | M46: 0.00
A47: Сухофрукты | B47: 0.00 | C47: 0.00 | D47: 0.00 | E47: 0.00 | F47: 0.00 | G47: 0.00 | H47: 0.00 | I47: 0.00 | J47: 0.00 | K47: 0.00 | L47: 0.00 | M47: 0.00
A48: Урюк | B48: 0.00 | C48: 0.00 | D48: 15.00 | E48: 0.00 | F48: 0.00 | G48: 0.00 | H48: 0.00 | I48: 15.00 | J48: 0.00 | K48: 15.00 | L48: 45.00 | M48: 4.50
A49: повидло фруктовое | B49: 0.00 | C49: 0.00 | D49: 23.50 | E49: 0.00 | F49: 0.00 | G49: 0.00 | H49: 0.00 | I49: 20.00 | J49: 0.00 | K49: 0.00 | L49: 43.50 | M49: 4.35
A50: Шиповник порошок | B50: 3.00 | C50: 0.00 | D50: 0.00 | E50: 2.70 | F50: 0.00 | G50: 3.00 | H50: 0.00 | I50: 0.00 | J50: 2.70 | K50: 0.00 | L50: 11.40 | M50: 1.14
A51: Молоко | B51: 100.00 | C51: 315.50 | D51: 148.00 | E51: 199.40 | F51: 181.00 | G51: 152.50 | H51: 317.50 | I51: 226.00 | J51: 155.50 | K51: 218.00 | L51: 2013.40 | M51: 201.34
A52: Кефир | B52: 0.00 | C52: 0.00 | D52: 0.00 | E52: 0.00 | F52: 120.00 | G52: 0.00 | H52: 0.00 | I52: 0.00 | J52: 0.00 | K52: 120.00 | L52: 240.00 | M52: 24.00
A53: Ряженка | B53: 0.00 | C53: 0.00 | D53: 120.00 | E53: 0.00 | F53: 0.00 | G53: 120.00 | H53: 0.00 | I53: 0.00 | J53: 120.00 | K53: 0.00 | L53: 360.00 | M53: 36.00
A54: Катык | B54: 120.00 | C54: 0.00 | D54: 0.00 | E54: 120.00 | F54: 0.00 | G54: 0.00 | H54: 0.00 | I54: 120.00 | J54: 0.00 | K54: 0.00 | L54: 360.00 | M54: 36.00
A55: Молоко сгущенное | B55: 0.00 | C55: 20.00 | D55: 0.00 | E55: 20.00 | F55: 0.00 | G55: 0.00 | H55: 20.00 | I55: 0.00 | J55: 0.00 | K55: 0.00 | L55: 60.00 | M55: 6.00
A56: Сметана | B56: 0.00 | C56: 12.00 | D56: 15.50 | E56: 19.28 | F56: 6.00 | G56: 5.00 | H56: 3.90 | I56: 5.00 | J56: 0.00 | K56: 16.29 | L56: 82.97 | M56: 8.30
A57: Творог | B57: 0.00 | C57: 138.00 | D57: 0.00 | E57: 107.14 | F57: 0.00 | G57: 0.00 | H57: 97.50 | I57: 0.00 | J57: 83.75 | K57: 0.00 | L57: 426.39 | M57: 42.64
A58: Говядина | B58: 0.00 | C58: 0.00 | D58: 0.00 | E58: 47.00 | F58: 0.00 | G58: 0.00 | H58: 0.00 | I58: 52.00 | J58: 0.00 | K58: 0.00 | L58: 99.00 | M58: 9.90
A59: Фарш из говядины | B59: 48.00 | C59: 0.00 | D59: 69.10 | E59: 0.00 | F59: 0.00 | G59: 0.00 | H59: 17.10 | I59: 0.00 | J59: 58.80 | K59: 0.00 | L59: 193.00 | M59: 19.30
A60: Цыплята | B60: 22.00 | C60: 22.00 | D60: 0.00 | E60: 0.00 | F60: 79.00 | G60: 77.00 | H60: 0.00 | I60: 0.00 | J60: 31.03 | K60: 22.00 | L60: 253.03 | M60: 25.30
A61: индейка филе | B61: 0.00 | C61: 0.00 | D61: 0.00 | E61: 0.00 | F61: 0.00 | G61: 0.00 | H61: 0.00 | I61: 0.00 | J61: 0.00 | K61: 0.00 | L61: 0.00 | M61: 0.00
A62: Сыр | B62: 0.00 | C62: 7.00 | D62: 0.00 | E62: 7.00 | F62: 0.00 | G62: 7.00 | H62: 0.00 | I62: 7.00 | J62: 0.00 | K62: 24.70 | L62: 52.70 | M62: 5.27
A63: рыба | B63: 0.00 | C63: 52.50 | D63: 0.00 | E63: 0.00 | F63: 0.00 | G63: 0.00 | H63: 56.00 | I63: 0.00 | J63: 0.00 | K63: 0.00 | L63: 108.50 | M63: 10.85
A64: Кофейный напиток | B64: 0.00 | C64: 0.00 | D64: 0.00 | E64: 1.50 | F64: 0.00 | G64: 0.00 | H64: 1.50 | I64: 0.00 | J64: 0.00 | K64: 1.50 | L64: 4.50 | M64: 0.45
A65: Какао-порошок | B65: 0.00 | C65: 1.50 | D65: 0.00 | E65: 0.00 | F65: 1.50 | G65: 0.00 | H65: 0.00 | I65: 1.50 | J65: 0.00 | K65: 0.00 | L65: 4.50 | M65: 0.45
A66: печенье | B66: 0.00 | C66: 0.00 | D66: 0.00 | E66: 0.00 | F66: 0.00 | G66: 0.00 | H66: 0.00 | I66: 0.00 | J66: 0.00 | K66: 0.00 | L66: 0.00 | M66: 0.00
A67: крекер | B67: 0.00 | C67: 0.00 | D67: 0.00 | E67: 0.00 | F67: 0.00 | G67: 0.00 | H67: 0.00 | I67: 0.00 | J67: 10.00 | K67: 0.00 | L67: 10.00 | M67: 1.00
A68: Соль | B68: 3.90 | C68: 4.00 | D68: 3.90 | E68: 4.00 | F68: 3.50 | G68: 3.80 | H68: 3.34 | I68: 3.90 | J68: 4.00 | K68: 4.90 | L68: 39.24 | M68: 3.92
A69: вафли | B69: 0.00 | C69: 0.00 | D69: 0.00 | E69: 21.00 | F69: 0.00 | G69: 0.00 | H69: 21.00 | I69: 0.00 | J69: 0.00 | K69: 0.00 | L69: 42.00 | M69: 4.20
A70: Сухари панировочные | B70: 0.00 | C70: 11.00 | D70: 0.00 | E70: 0.00 | F70: 0.00 | G70: 6.00 | H70: 0.00 | I70: 0.00 | J70: 5.80 | K70: 0.00 | L70: 22.80 | M70: 2.28
A71: Напиток витаминный | B71: 0.00 | C71: 0.00 | D71: 0.00 | E71: 0.00 | F71: 0.00 | G71: 0.00 | H71: 0.00 | I71: 0.00 | J71: 0.00 | K71: 0.00 | L71: 0.00 | M71: 0.00
A72: Крупы, бобовые | B72: 60.70 | C72: 36.75 | D72: 44.00 | E72: 41.40 | F72: 63.50 | G72: 33.00 | H72: 63.00 | I72: 45.60 | J72: 37.00 | K72: 62.50 | L72: 487.45 | M72: 48.75
A73: Овощи разные | B73: 101.30 | C73: 95.00 | D73: 178.90 | E73: 121.30 | F73: 138.50 | G73: 97.00 | H73: 72.50 | I73: 133.40 | J73: 76.25 | K73: 87.50 | L73: 1101.65 | M73: 110.17
A74: Фрукты | B74: 100.00 | C74: 141.00 | D74: 100.00 | E74: 0.00 | F74: 36.00 | G74: 200.00 | H74: 41.00 | I74: 200.00 | J74: 0.00 | K74: 100.00 | L74: 918.00 | M74: 91.80
A75: Фрукты сухие | B75: 3.00 | C75: 0.00 | D75: 38.50 | E75: 2.70 | F75: 0.00 | G75: 3.00 | H75: 0.00 | I75: 35.00 | J75: 2.70 | K75: 15.00 | L75: 99.90 | M75: 9.99
A76: Молочные прод. | B76: 220.00 | C76: 335.50 | D76: 268.00 | E76: 339.40 | F76: 301.00 | G76: 272.50 | H76: 337.50 | I76: 346.00 | J76: 275.50 | K76: 338.00 | L76: 3033.40 | M76: 303.34
A77: Птица | B77: 22.00 | C77: 22.00 | D77: 0.00 | E77: 0.00 | F77: 79.00 | G77: 77.00 | H77: 0.00 | I77: 0.00 | J77: 31.03 | K77: 22.00 | L77: 253.03 | M77: 25.30
A78: Говядина | B78: 48.00 | C78: 0.00 | D78: 69.10 | E78: 47.00 | F78: 0.00 | G78: 0.00 | H78: 17.10 | I78: 52.00 | J78: 58.80 | K78: 0.00 | L78: 292.00 | M78: 29.20
A79: Макаронные изделия | B79: 8.00 | C79: 0.00 | D79: 0.00 | E79: 0.00 | F79: 0.00 | G79: 45.50 | H79: 0.00 | I79: 14.00 | J79: 0.00 | K79: 0.00 | L79: 67.50 | M79: 6.75
A80: Хлеб пшеничный | B80: 59.00 | C80: 53.00 | D80: 53.00 | E80: 53.00 | F80: 53.00 | G80: 53.00 | H80: 72.00 | I80: 53.00 | J80: 62.00 | K80: 53.00 | L80: 564.00 | M80: 56.40
A81: Кондитерские изделия | B81: 0.00 | C81: 0.00 | D81: 0.00 | E81: 0.00 | F81: 0.00 | G81: 0.00 | H81: 0.00 | I81: 0.00 | J81: 10.00 | K81: 0.00 | L81: 10.00 | M81: 1.00
A82: Субпродукты | L82: 0.00 | M82: 0.00
A83: Примечание: расход хлеба пшеничного с учетом расхода сухарей панировочных
B84: Расход продуктов ДОУ
D85: от 3 до 7 лет | K85: брутто
A87: Наименов. прод. | B87: 1 | C87: 2 | D87: 3 | E87: 4 | F87: 5 | G87: 6 | H87: 7 | I87: 8 | J87: 9 | K87: 10 | L87: Кол-во | M87: Среднее
A89: Сахар | B89: 26.00 | C89: 31.20 | D89: 17.60 | E89: 30.40 | F89: 23.30 | G89: 24.80 | H89: 28.00 | I89: 21.60 | J89: 31.00 | K89: 20.83 | L89: 254.73 | M89: 25.47
A90: Заварка | B90: 0.30 | C90: 0.35 | D90: 0.75 | E90: 0.00 | F90: 0.30 | G90: 0.30 | H90: 0.35 | I90: 0.45 | J90: 0.30 | K90: 0.30 | L90: 3.40 | M90: 0.34
A91: Яйцо | B91: 1.00 | C91: 16.50 | D91: 58.90 | E91: 7.14 | F91: 1.08 | G91: 7.00 | H91: 9.30 | I91: 2.50 | J91: 15.50 | K91: 106.40 | L91: 225.32 | M91: 22.53
A92: Дрожжи сухие | B92: 0.20 | C92: 0.00 | D92: 0.20 | E92: 0.00 | F92: 0.25 | G92: 0.38 | H92: 0.00 | I92: 0.20 | J92: 0.00 | K92: 0.20 | L92: 1.43 | M92: 0.14
A93: Батон нарезной | B93: 30.00 | C93: 30.00 | D93: 30.00 | E93: 30.00 | F93: 30.00 | G93: 30.00 | H93: 30.00 | I93: 30.00 | J93: 30.00 | K93: 30.00 | L93: 300.00 | M93: 30.00
A94: Хлеб пшеничный 1с | B94: 29.00 | C94: 23.00 | D94: 23.00 | E94: 23.00 | F94: 23.00 | G94: 23.00 | H94: 44.40 | I94: 23.00 | J94: 32.00 | K94: 23.00 | L94: 266.40 | M94: 26.64
A95: Хлеб сельский | B95: 37.50 | C95: 37.50 | D95: 37.50 | E95: 37.50 | F95: 37.50 | G95: 37.50 | H95: 37.50 | I95: 37.50 | J95: 37.50 | K95: 37.50 | L95: 375.00 | M95: 37.50
A96: Мука пшеничная | B96: 34.40 | C96: 0.00 | D96: 28.80 | E96: 0.00 | F96: 35.00 | G96: 30.00 | H96: 5.95 | I96: 24.10 | J96: 40.50 | K96: 24.70 | L96: 223.45 | M96: 22.35
A97: Кисель-концентрат | B97: 21.60 | C97: 0.00 | D97: 0.00 | E97: 21.60 | F97: 0.00 | G97: 21.60 | H97: 0.00 | I97: 0.00 | J97: 21.60 | K97: 0.00 | L97: 86.40 | M97: 8.64
A98: Макаронные изделия | B98: 0.00 | C98: 0.00 | D98: 0.00 | E98: 0.00 | F98: 0.00 | G98: 45.50 | H98: 0.00 | I98: 0.00 | J98: 0.00 | K98: 0.00 | L98: 45.50 | M98: 4.55
A99: Вермишель | B99: 8.00 | C99: 0.00 | D99: 0.00 | E99: 0.00 | F99: 0.00 | G99: 0.00 | H99: 0.00 | I99: 14.00 | J99: 0.00 | K99: 0.00 | L99: 22.00 | M99: 2.20
A100: Крупа рисовая | B100: 37.70 | C100: 15.00 | D100: 7.00 | E100: 0.00 | F100: 38.50 | G100: 0.00 | H100: 43.00 | I100: 45.60 | J100: 12.00 | K100: 0.00 | L100: 198.80 | M100: 19.88
A101: Крупа кукурузная | B101: 0.00 | C101: 0.00 | D101: 0.00 | E101: 0.00 | F101: 0.00 | G101: 0.00 | H101: 0.00 | I101: 0.00 | J101: 0.00 | K101: 0.00 | L101: 0.00 | M101: 0.00
A102: Крупа манная | B102: 23.00 | C102: 10.75 | D102: 0.00 | E102: 11.40 | F102: 0.00 | G102: 0.00 | H102: 0.00 | I102: 0.00 | J102: 0.00 | K102: 0.00 | L102: 45.15 | M102: 4.52
A103: Горох | B103: 0.00 | C103: 0.00 | D103: 0.00 | E103: 0.00 | F103: 0.00 | G103: 0.00 | H103: 20.25 | I103: 0.00 | J103: 0.00 | K103: 0.00 | L103: 20.25 | M103: 2.03
A104: Крупа пшенная | B104: 0.00 | C104: 11.00 | D104: 0.00 | E104: 30.00 | F104: 0.00 | G104: 0.00 | H104: 0.00 | I104: 0.00 | J104: 0.00 | K104: 30.00 | L104: 71.00 | M104: 7.10
A105: Крупа ячневая | B105: 0.00 | C105: 0.00 | D105: 0.00 | E105: 0.00 | F105: 0.00 | G105: 0.00 | H105: 0.00 | I105: 0.00 | J105: 0.00 | K105: 0.00 | L105: 0.00 | M105: 0.00
A106: Полба | B106: 0.00 | C106: 0.00 | D106: 0.00 | E106: 0.00 | F106: 25.00 | G106: 0.00 | H106: 0.00 | I106: 0.00 | J106: 25.00 | K106: 0.00 | L106: 50.00 | M106: 5.00
A107: Крупа перловая | B107: 0.00 | C107: 0.00 | D107: 0.00 | E107: 0.00 | F107: 0.00 | G107: 8.00 | H107: 0.00 | I107: 0.00 | J107: 0.00 | K107: 0.00 | L107: 8.00 | M107: 0.80
A108: Крупа геркулесовая | B108: 0.00 | C108: 0.00 | D108: 25.00 | E108: 0.00 | F108: 0.00 | G108: 25.00 | H108: 0.00 | I108: 0.00 | J108: 0.00 | K108: 0.00 | L108: 50.00 | M108: 5.00
A109: Крупа пшеничная | B109: 0.00 | C109: 0.00 | D109: 0.00 | E109: 0.00 | F109: 0.00 | G109: 0.00 | H109: 0.00 | I109: 0.00 | J109: 0.00 | K109: 0.00 | L109: 0.00 | M109: 0.00
A110: Крупа гречневая | B110: 0.00 | C110: 0.00 | D110: 12.00 | E110: 0.00 | F110: 0.00 | G110: 0.00 | H110: 0.00 | I110: 0.00 | J110: 0.00 | K110: 32.50 | L110: 44.50 | M110: 4.45
A111: Картофель | B111: 79.80 | C111: 201.63 | D111: 79.80 | E111: 192.32 | F111: 45.89 | G111: 79.80 | H111: 201.63 | I111: 21.28 | J111: 228.23 | K111: 53.20 | L111: 1183.58 | M111: 118.36
A112: Морковь | B112: 33.25 | C112: 10.00 | D112: 11.33 | E112: 10.00 | F112: 30.02 | G112: 38.13 | H112: 10.00 | I112: 23.00 | J112: 10.00 | K112: 15.32 | L112: 191.05 | M112: 19.11
A113: Лук репчатый | B113: 39.52 | C113: 25.02 | D113: 27.81 | E113: 27.72 | F113: 18.29 | G113: 16.66 | H113: 17.26 | I113: 19.02 | J113: 21.72 | K113: 10.72 | L113: 223.74 | M113: 22.37
A114: Свекла | B114: 0.00 | C114: 0.00 | D114: 0.00 | E114: 0.00 | F114: 67.83 | G114: 0.00 | H114: 0.00 | I114: 40.00 | J114: 0.00 | K114: 0.00 | L114: 107.83 | M114: 10.78
A115: Капуста свежая | B115: 50.60 | C115: 20.00 | D115: 120.00 | E115: 50.00 | F115: 0.00 | G115: 50.60 | H115: 0.00 | I115: 20.00 | J115: 0.00 | K115: 20.00 | L115: 331.20 | M115: 33.12
A116: Икра кабачковая | B116: 0.00 | C116: 0.00 | D116: 0.00 | E116: 0.00 | F116: 0.00 | G116: 0.00 | H116: 0.00 | I116: 0.00 | J116: 0.00 | K116: 0.00 | L116: 0.00 | M116: 0.00
A117: Огурцы соленые | B117: 0.00 | C117: 0.00 | D117: 0.00 | E117: 0.00 | F117: 0.00 | G117: 21.84 | H117: 0.00 | I117: 0.00 | J117: 0.00 | K117: 0.00 | L117: 21.84 | M117: 2.18
A118: Помидоры свежие | B118: 0.00 | C118: 52.00 | D118: 0.00 | E118: 52.00 | F118: 24.48 | G118: 0.00 | H118: 52.00 | I118: 0.00 | J118: 52.00 | K118: 24.48 | L118: 256.96 | M118: 25.70
A119: Огурцы свежие | B119: 0.00 | C119: 0.00 | D119: 51.00 | E119: 0.00 | F119: 23.97 | G119: 0.00 | H119: 0.00 | I119: 51.00 | J119: 0.00 | K119: 23.97 | L119: 149.94 | M119: 14.99
A120: Соус Переменка | B120: 0.00 | C120: 0.00 | D120: 0.00 | E120: 0.00 | F120: 0.00 | G120: 0.00 | H120: 0.00 | I120: 0.00 | J120: 0.00 | K120: 0.00 | L120: 0.00 | M120: 0.00
A121: Томат-паста | B121: 1.00 | C121: 0.00 | D121: 1.00 | E121: 0.00 | F121: 1.00 | G121: 0.00 | H121: 0.00 | I121: 1.00 | J121: 0.00 | K121: 3.00 | L121: 7.00 | M121: 0.70
A122: Масло сливочное | B122: 15.00 | C122: 17.00 | D122: 16.70 | E122: 8.00 | F122: 13.00 | G122: 15.10 | H122: 21.90 | I122: 6.50 | J122: 31.00 | K122: 16.20 | L122: 160.40 | M122: 16.04
A123: Масло растительное | B123: 14.70 | C123: 5.50 | D123: 2.10 | E123: 9.60 | F123: 13.16 | G123: 8.50 | H123: 3.50 | I123: 9.20 | J123: 5.00 | K123: 14.38 | L123: 85.64 | M123: 8.56
A124: Фрукты свежие | B124: 114.00 | C124: 114.00 | D124: 114.00 | E124: 0.00 | F124: 0.00 | G124: 228.00 | H124: 0.00 | I124: 228.00 | J124: 0.00 | K124: 114.00 | L124: 912.00 | M124: 91.20
A125: Яблоки | B125: 0.00 | C125: 40.80 | D125: 0.00 | E125: 0.00 | F125: 40.80 | G125: 0.00 | H125: 40.80 | I125: 0.00 | J125: 0.00 | K125: 0.00 | L125: 122.40 | M125: 12.24
A126: крыжовник зам. | B126: 0.00 | C126: 0.00 | D126: 0.00 | E126: 0.00 | F126: 0.00 | G126: 0.00 | H126: 0.00 | I126: 0.00 | J126: 0.00 | K126: 0.00 | L126: 0.00 | M126: 0.00
A127: Лимон | B127: 0.00 | C127: 5.10 | D127: 0.00 | E127: 0.00 | F127: 0.00 | G127: 0.00 | H127: 5.10 | I127: 0.00 | J127: 0.00 | K127: 0.00 | L127: 10.20 | M127: 1.02
A128: Ягодная смесь зам. | B128: 0.00 | C128: 0.00 | D128: 0.00 | E128: 0.00 | F128: 0.00 | G128: 0.00 | H128: 0.00 | I128: 0.00 | J128: 0.00 | K128: 0.00 | L128: 0.00 | M128: 0.00
A129: Сок | B129: 125.00 | C129: 0.00 | D129: 125.00 | E129: 0.00 | F129: 125.00 | G129: 0.00 | H129: 125.00 | I129: 0.00 | J129: 125.00 | K129: 0.00 | L129: 625.00 | M129: 62.50
A130: Курага | B130: 0.00 | C130: 0.00 | D130: 0.00 | E130: 0.00 | F130: 0.00 | G130: 0.00 | H130: 0.00 | I130: 0.00 | J130: 0.00 | K130: 0.00 | L130: 0.00 | M130: 0.00
A131: Сухофрукты | B131: 0.00 | C131: 0.00 | D131: 0.00 | E131: 0.00 | F131: 0.00 | G131: 0.00 | H131: 0.00 | I131: 0.00 | J131: 0.00 | K131: 0.00 | L131: 0.00 | M131: 0.00
A132: Урюк | B132: 0.00 | C132: 0.00 | D132: 15.30 | E132: 0.00 | F132: 0.00 | G132: 0.00 | H132: 0.00 | I132: 15.30 | J132: 0.00 | K132: 15.30 | L132: 45.90 | M132: 4.59
A133: повидло фруктовое | B133: 0.00 | C133: 0.00 | D133: 23.50 | E133: 0.00 | F133: 0.00 | G133: 0.00 | H133: 0.00 | I133: 20.00 | J133: 0.00 | K133: 0.00 | L133: 43.50 | M133: 4.35
A134: Шиповник порошок | B134: 3.00 | C134: 0.00 | D134: 0.00 | E134: 2.70 | F134: 0.00 | G134: 3.00 | H134: 0.00 | I134: 0.00 | J134: 2.70 | K134: 0.00 | L134: 11.40 | M134: 1.14
A135: Молоко | B135: 100.00 | C135: 322.96 | D135: 148.00 | E135: 199.40 | F135: 181.00 | G135: 152.50 | H135: 324.96 | I135: 226.00 | J135: 156.50 | K135: 218.00 | L135: 2029.32 | M135: 202.93
A136: Кефир | B136: 0.00 | C136: 0.00 | D136: 0.00 | E136: 0.00 | F136: 123.60 | G136: 0.00 | H136: 0.00 | I136: 0.00 | J136: 0.00 | K136: 123.60 | L136: 247.20 | M136: 24.72
A137: Ряженка | B137: 0.00 | C137: 0.00 | D137: 123.60 | E137: 0.00 | F137: 0.00 | G137: 123.60 | H137: 0.00 | I137: 0.00 | J137: 123.60 | K137: 0.00 | L137: 370.80 | M137: 37.08
A138: Катык | B138: 123.60 | C138: 0.00 | D138: 0.00 | E138: 123.60 | F138: 0.00 | G138: 0.00 | H138: 0.00 | I138: 123.60 | J138: 0.00 | K138: 0.00 | L138: 370.80 | M138: 37.08
A139: Молоко сгущенное | B139: 0.00 | C139: 20.00 | D139: 0.00 | E139: 20.00 | F139: 0.00 | G139: 0.00 | H139: 20.00 | I139: 0.00 | J139: 0.00 | K139: 0.00 | L139: 60.00 | M139: 6.00
A140: Сметана | B140: 0.00 | C140: 12.00 | D140: 15.50 | E140: 19.28 | F140: 6.00 | G140: 5.00 | H140: 3.90 | I140: 5.00 | J140: 0.00 | K140: 16.38 | L140: 83.06 | M140: 8.31
A141: Творог | B141: 0.00 | C141: 140.00 | D141: 0.00 | E141: 109.28 | F141: 0.00 | G141: 0.00 | H141: 98.80 | I141: 0.00 | J141: 85.00 | K141: 0.00 | L141: 433.08 | M141: 43.31
A142: Говядина | B142: 0.00 | C142: 0.00 | D142: 0.00 | E142: 47.00 | F142: 0.00 | G142: 0.00 | H142: 0.00 | I142: 52.00 | J142: 0.00 | K142: 0.00 | L142: 99.00 | M142: 9.90
A143: Фарш из говядины | B143: 48.00 | C143: 0.00 | D143: 69.10 | E143: 0.00 | F143: 0.00 | G143: 0.00 | H143: 17.10 | I143: 0.00 | J143: 58.80 | K143: 0.00 | L143: 193.00 | M143: 19.30
A144: Цыплята | B144: 33.85 | C144: 33.85 | D144: 0.00 | E144: 0.00 | F144: 121.50 | G144: 118.45 | H144: 0.00 | I144: 0.00 | J144: 47.73 | K144: 33.85 | L144: 389.23 | M144: 38.92
A145: индейка филе | B145: 0.00 | C145: 0.00 | D145: 0.00 | E145: 0.00 | F145: 0.00 | G145: 0.00 | H145: 0.00 | I145: 0.00 | J145: 0.00 | K145: 0.00 | L145: 0.00 | M145: 0.00
A146: куриная грудка | B146: 0.00 | C146: 0.00 | D146: 0.00 | E146: 0.00 | F146: 0.00 | G146: 0.00 | H146: 0.00 | I146: 0.00 | J146: 0.00 | K146: 85.33 | L146: 85.33 | M146: 8.53
A147: Сыр | B147: 0.00 | C147: 7.14 | D147: 0.00 | E147: 7.14 | F147: 0.00 | G147: 7.14 | H147: 0.00 | I147: 7.14 | J147: 0.00 | K147: 25.14 | L147: 53.70 | M147: 5.37
A148: рыба | B148: 0.00 | C148: 69.08 | D148: 0.00 | E148: 0.00 | F148: 0.00 | G148: 0.00 | H148: 73.70 | I148: 0.00 | J148: 0.00 | K148: 0.00 | L148: 142.78 | M148: 14.28
A149: Кофейный напиток | B149: 0.00 | C149: 0.00 | D149: 0.00 | E149: 1.50 | F149: 0.00 | G149: 0.00 | H149: 1.50 | I149: 0.00 | J149: 0.00 | K149: 1.50 | L149: 4.50 | M149: 0.45
A150: Какао-порошок | B150: 0.00 | C150: 1.50 | D150: 0.00 | E150: 0.00 | F150: 1.50 | G150: 0.00 | H150: 0.00 | I150: 1.50 | J150: 0.00 | K150: 0.00 | L150: 4.50 | M150: 0.45
A151: печенье | B151: 0.00 | C151: 0.00 | D151: 0.00 | E151: 0.00 | F151: 0.00 | G151: 0.00 | H151: 0.00 | I151: 0.00 | J151: 0.00 | K151: 0.00 | L151: 0.00 | M151: 0.00
A152: крекер | B152: 0.00 | C152: 0.00 | D152: 0.00 | E152: 0.00 | F152: 0.00 | G152: 0.00 | H152: 0.00 | I152: 0.00 | J152: 10.00 | K152: 0.00 | L152: 10.00 | M152: 1.00
A153: Соль | B153: 3.90 | C153: 4.00 | D153: 3.90 | E153: 4.00 | F153: 3.50 | G153: 3.80 | H153: 3.34 | I153: 3.90 | J153: 4.00 | K153: 4.90 | L153: 39.24 | M153: 3.92
A154: вафли | B154: 0.00 | C154: 0.00 | D154: 0.00 | E154: 21.00 | F154: 0.00 | G154: 0.00 | H154: 21.00 | I154: 0.00 | J154: 0.00 | K154: 0.00 | L154: 42.00 | M154: 4.20
A155: Сухари панировочные | B155: 0.00 | C155: 11.00 | D155: 0.00 | E155: 0.00 | F155: 0.00 | G155: 6.00 | H155: 0.00 | I155: 0.00 | J155: 5.80 | K155: 0.00 | L155: 22.80 | M155: 2.28
A156: Крупы, бобовые | B156: 60.70 | C156: 36.75 | D156: 44.00 | E156: 41.40 | F156: 63.50 | G156: 33.00 | H156: 63.25 | I156: 45.60 | J156: 37.00 | K156: 62.50 | L156: 487.70 | M156: 48.77
A157: Овощи разные | B157: 124.37 | C157: 107.02 | D157: 211.14 | E157: 139.72 | F157: 165.59 | G157: 127.23 | H157: 79.26 | I157: 154.02 | J157: 83.72 | K157: 97.49 | L157: 1289.56 | M157: 128.96
A158: Фрукты | B158: 114.00 | C158: 159.90 | D158: 114.00 | E158: 0.00 | F158: 40.80 | G158: 228.00 | H158: 45.90 | I158: 228.00 | J158: 0.00 | K158: 114.00 | L158: 1044.60 | M158: 104.46
A159: Фрукты сухие | B159: 0.00 | C159: 0.00 | D159: 38.80 | E159: 0.00 | F159: 0.00 | G159: 0.00 | H159: 0.00 | I159: 35.30 | J159: 0.00 | K159: 15.30 | L159: 89.40 | M159: 8.94
A160: Молочные прод. | B160: 223.60 | C160: 342.96 | D160: 271.60 | E160: 343.00 | F160: 304.60 | G160: 276.10 | H160: 344.96 | I160: 349.60 | J160: 280.10 | K160: 341.60 | L160: 3078.12 | M160: 307.81
A161: птица | B161: 33.85 | C161: 33.85 | D161: 0.00 | E161: 0.00 | F161: 121.50 | G161: 118.45 | H161: 0.00 | I161: 0.00 | J161: 47.73 | K161: 119.18 | L161: 474.56 | M161: 47.46
A162: Говядина | B162: 48.00 | C162: 0.00 | D162: 69.10 | E162: 47.00 | F162: 0.00 | G162: 0.00 | H162: 17.10 | I162: 52.00 | J162: 58.80 | K162: 0.00 | L162: 292.00 | M162: 29.20
A163: Макаронные изделия | B163: 8.00 | C163: 0.00 | D163: 0.00 | E163: 0.00 | F163: 0.00 | G163: 45.50 | H163: 0.00 | I163: 14.00 | J163: 0.00 | K163: 0.00 | L163: 67.50 | M163: 6.75
A164: Хлеб пшеничный | B164: 59.00 | C164: 53.00 | D164: 53.00 | E164: 53.00 | F164: 53.00 | G164: 53.00 | H164: 74.40 | I164: 53.00 | J164: 62.00 | K164: 53.00 | L164: 566.40 | M164: 56.64
A165: Кондитерские изделия | B165: 0.00 | C165: 0.00 | D165: 0.00 | E165: 0.00 | F165: 0.00 | G165: 0.00 | H165: 0.00 | I165: 0.00 | J165: 10.00 | K165: 0.00 | L165: 10.00 | M165: 1.00
